Workbook

Sheet Steuerung
B2: Finanzierung aus Abschreibung
B3: Kapazitätserweiterungseffekt
B5: Maschinenanfangsbestand | C5: 12 | F5: Geben Sie die Ausgangsdaten ein und lassen Sie sich durch Klick auf die Buttons die Entwicklung der Perioden- und Gesamt- kapazitäten bei unterschiedlicher kalkulatorischer Nutzungsdauer anzeigen.
B6: Maschinenkapazität je Jahr | C6: 5000
B7: Anschaffungswert je Maschine | C7: 5000
B8: bilanzielle Nutzungsdauer in Jahren | C8: 6
B9: bilanzielle Abschreibung (linear) | C9: =C7/C8 -> 833.3333333
B10: Wiederbeschaffungswert | C10: 10000
B12: kalkulatorische Nutzungsdauer in Jahren | C12: 1 | D12: 2 | E12: 3 | F12: 4 | G12: 5 | H12: 6 | I12: 7 | J12: 8 | K12: 9 | L12: 10
B13: Berechnung
B14: Diagramm
B16: kalkulatorische Nutzungsdauer in Jahren | C16: 11 | D16: 12 | E16: 13 | F16: 14 | G16: 15 | H16: 16 | I16: 17 | J16: 18 | K16: 19 | L16: 20
B17: Berechnung
B18: Diagramm
C27: 1
C28: 2
C29: 3
C30: 4
C31: 5
C32: 6
C33: 7
C34: 8
C35: 9
C36: 10
C37: 11
C38: 12
C39: 13
C40: 14
C41: 15
C42: 16
C43: 17
C44: 18
C45: 19
C46: 20

Sheet Berechnungen
A2: Wiederbeschaffungswert je Maschine | B2: =Steuerung!C10 -> 10000
A3: bilanzielle Nutzungsdauer in Jahren | B3: =Steuerung!C8 -> 6
A4: Erstanschaffung | B4: =Steuerung!C5 -> 12
A5: bilanzielle Abschreibung je Maschine | B5: =Steuerung!C9 -> 833.3333333
A6: Maschinenkapazität je Jahr | B6: =Steuerung!C6 -> 5000
A8: kalkulatorische Nutzungsdauer in Jahren | B8: 1 | C8: kalkulatorische Abschreibung je Machine | F8: =$B$2/$B8 -> 10000
A9: Periode | B9: 0 | C9: 1 | D9: 2 | E9: 3 | F9: 4 | G9: 5 | H9: 6 | I9: 7 | J9: 8 | K9: 9 | L9: 10 | M9: 11 | N9: 12 | O9: 13 | P9: 14 | Q9: 15 | R9: 16 | S9: 17 | T9: 18 | U9: 19 | V9: 20
A10: Maschinenbestand | B10: =$B$4 -> 12 | C10: =B10-B11+B17 -> 13 | D10: =C10-C11+C17 -> 14 | E10: =D10-D11+D17 -> 15 | F10: 16 | G10: 17 | H10: 7 | I10: 6 | J10: 6 | K10: 5 | L10: 5 | M10: =L10-L11+L17 -> 4 | N10: 3 | O10: 3 | P10: 2 | Q10: 2 | R10: 1 | S10: 1 | T10: 1 | U10: 1 | V10: 1
A11: Betriebsmittelabgang | B11: 0 | C11: 0 | D11: 0 | E11: 0 | F11: 0 | G11: =B10 -> 12 | H11: =B17 -> 1 | I11: 1 | J11: 1 | K11: 1 | L11: 1 | M11: 2 | N11: 0 | O11: 1 | P11: 0 | Q11: 1 | R11: 0 | S11: 1 | T11: 0 | U11: 0 | V11: 0
A12: Kapazitäsrückgang während des Jahres | B12: =B10*$B$6 -> 60000 | C12: =C10*$B$6 -> 65000 | D12: =D10*$B$6 -> 70000 | E12: =E10*$B$6 -> 75000 | F12: 80000 | G12: 85000 | H12: 35000 | I12: 30000 | J12: 30000 | K12: 25000 | L12: 25000 | M12: =M10*$B$6 -> 20000 | N12: 15000 | O12: 15000 | P12: 10000 | Q12: 10000 | R12: 5000 | S12: 5000 | T12: 5000 | U12: 5000 | V12: 5000
A13: Kapitalfreisetzung am Jahresende | B13: =$F8*B10 -> 120000 | C13: =$F8*C10 -> 130000 | D13: =$F8*D10 -> 140000 | E13: =$F8*E10 -> 150000 | F13: 160000 | G13: 170000 | H13: 70000 | I13: 60000 | J13: 60000 | K13: 50000 | L13: 50000 | M13: =$F8*M10 -> 40000 | N13: 30000 | O13: 30000 | P13: 20000 | Q13: 20000 | R13: 10000 | S13: 10000 | T13: 10000 | U13: 10000 | V13: 10000
A14: Freisetzung aus stiller Selbstfinanzierung am Jahresende | B14: =($B$5-$F8)*B10 -> -110000 | C14: =($B$5-$F8)*C10 -> -119166.6667 | D14: =($B$5-$F8)*D10 -> -128333.3333 | E14: =($B$5-$F8)*E10 -> -137500 | F14: -146666.6667 | G14: -155833.3333 | H14: -64166.66667 | I14: -55000 | J14: -55000 | K14: -45833.33333 | L14: -45833.33333 | M14: =($B$5-$F8)*M10 -> -36666.66667 | N14: -27500 | O14: -27500 | P14: -18333.33333 | Q14: -18333.33333 | R14: -9166.666667 | S14: -9166.666667 | T14: -9166.666667 | U14: -9166.666667 | V14: -9166.666667
A15: freigesetzte Mittel aus Vorjahr | B15: 0 | C15: =B16-B18 -> 0 | D15: =C16-C18 -> 833.3333333 | E15: =D16-D18 -> 2500 | F15: 5000 | G15: 8333.333333 | H15: 2500 | I15: 8333.333333 | J15: 3333.333333 | K15: 8333.333333 | L15: 2500 | M15: =L16-L18 -> 6666.666667 | N15: 5.820766091e-11 | O15: 2500 | P15: 5000 | Q15: 6666.666667 | R15: 8333.333333 | S15: 9166.666667 | T15: 6.184563972e-11 | U15: 833.3333333 | V15: 1666.666667
A16: Gesamtfreisetzung | B16: =B13+B14+B15 -> 10000 | C16: 10833.33333 | D16: 12500 | E16: 15000 | F16: 18333.33333 | G16: 22500 | H16: 8333.333333 | I16: 13333.33333 | J16: 8333.333333 | K16: 12500 | L16: 6666.666667 | M16: 10000 | N16: 2500 | O16: 5000 | P16: 6666.666667 | Q16: 8333.333333 | R16: 9166.666667 | S16: 10000 | T16: 833.3333333 | U16: 1666.666667 | V16: 2500
A17: Anzahl neuer Maschinen | B17: =INT(B16/$B$2) -> 1 | C17: 1 | D17: 1 | E17: 1 | F17: 1 | G17: 2 | H17: 0 | I17: 1 | J17: 0 | K17: 1 | L17: 0 | M17: 1 | N17: 0 | O17: 0 | P17: 0 | Q17: 0 | R17: 0 | S17: 1 | T17: 0 | U17: 0 | V17: 0
A18: Investition | B18: =B17*$B$2 -> 10000 | C18: 10000 | D18: 10000 | E18: 10000 | F18: 10000 | G18: 20000 | H18: 0 | I18: 10000 | J18: 0 | K18: 10000 | L18: 0 | M18: 10000 | N18: 0 | O18: 0 | P18: 0 | Q18: 0 | R18: 0 | S18: 10000 | T18: 0 | U18: 0 | V18: 0
A19: Gesamtkapazität Jahresanfang | B19: =B10*$B$6*$B8 -> 60000 | C19: =B22 -> 5000 | D19: =C22 -> -55000 | E19: =D22 -> -120000 | F19: -190000 | G19: -265000 | H19: -340000 | I19: -375000 | J19: -400000 | K19: -430000 | L19: -450000 | M19: =L22 -> -475000 | N19: -490000 | O19: -505000 | P19: -520000 | Q19: -530000 | R19: -540000 | S19: -545000 | T19: -545000 | U19: -550000 | V19: -555000
A20: Kapazitäsrückgang während des Jahres | B20: =B10*$B$6 -> 60000 | C20: =C10*$B$6 -> 65000 | D20: =D10*$B$6 -> 70000 | E20: =E10*$B$6 -> 75000 | F20: 80000 | G20: 85000 | H20: 35000 | I20: 30000 | J20: 30000 | K20: 25000 | L20: 25000 | M20: =M10*$B$6 -> 20000 | N20: 15000 | O20: 15000 | P20: 10000 | Q20: 10000 | R20: 5000 | S20: 5000 | T20: 5000 | U20: 5000 | V20: 5000
A21: Gesamtkapazitätszunahme | B21: =B17*$B$6*$B8 -> 5000 | C21: =C17*$B$6*$B8 -> 5000 | D21: =D17*$B$6*$B8 -> 5000 | E21: =E17*$B$6*$B8 -> 5000 | F21: 5000 | G21: 10000 | H21: 0 | I21: 5000 | J21: 0 | K21: 5000 | L21: 0 | M21: =M17*$B$6*$B8 -> 5000 | N21: 0 | O21: 0 | P21: 0 | Q21: 0 | R21: 0 | S21: 5000 | T21: 0 | U21: 0 | V21: 0
A22: Gesamtkapazität Jahresende | B22: =B19-B20+B21 -> 5000 | C22: -55000 | D22: -120000 | E22: -190000 | F22: -265000 | G22: -340000 | H22: -375000 | I22: -400000 | J22: -430000 | K22: -450000 | L22: -475000 | M22: -490000 | N22: -505000 | O22: -520000 | P22: -530000 | Q22: -540000 | R22: -545000 | S22: -545000 | T22: -550000 | U22: -555000 | V22: -560000
A23: Periodenkapazität am Jahresanfang | B23: =B10*$B$6 -> 60000 | C23: 65000 | D23: 70000 | E23: =E10*$B$6 -> 75000 | F23: 80000 | G23: 85000 | H23: 35000 | I23: 30000 | J23: 30000 | K23: 25000 | L23: 25000 | M23: =M10*$B$6 -> 20000 | N23: 15000 | O23: 15000 | P23: 10000 | Q23: 10000 | R23: 5000 | S23: 5000 | T23: 5000 | U23: 5000 | V23: 5000
A24: Periodenkapazitätsabnahme | B24: 0 | C24: 0 | D24: 0 | E24: =E11*$B$6 -> 0 | F24: 0 | G24: 60000 | H24: 5000 | I24: 5000 | J24: 5000 | K24: 5000 | L24: 5000 | M24: =M11*$B$6 -> 10000 | N24: 0 | O24: 5000 | P24: 0 | Q24: 5000 | R24: 0 | S24: 5000 | T24: 0 | U24: 0 | V24: 0
A25: Periodenkapazitätszunahme | B25: =B17*$B$6 -> 5000 | C25: =C17*$B$6 -> 5000 | D25: =D17*$B$6 -> 5000 | E25: =E17*$B$6 -> 5000 | F25: 5000 | G25: 10000 | H25: 0 | I25: 5000 | J25: 0 | K25: 5000 | L25: 0 | M25: =M17*$B$6 -> 5000 | N25: 0 | O25: 0 | P25: 0 | Q25: 0 | R25: 0 | S25: 5000 | T25: 0 | U25: 0 | V25: 0
A26: Periodenkapazität am Jahresende | B26: =B23-B24+B25 -> 65000 | C26: =C23+C25 -> 70000 | D26: 75000 | E26: 80000 | F26: 85000 | G26: 95000 | H26: 35000 | I26: 35000 | J26: 30000 | K26: 30000 | L26: 25000 | M26: 25000 | N26: 15000 | O26: 15000 | P26: 10000 | Q26: 10000 | R26: 5000 | S26: 10000 | T26: 5000 | U26: 5000 | V26: 5000
A28: kalkulatorische Nutzungsdauer in Jahren | B28: 2 | C28: kalkulatorische Abschreibung je Machine | F28: =$B$2/$B28 -> 5000
A29: Periode | B29: 0 | C29: 1 | D29: 2 | E29: 3 | F29: 4 | G29: 5 | H29: 6 | I29: 7 | J29: 8 | K29: 9 | L29: 10 | M29: 11 | N29: 12 | O29: 13 | P29: 14 | Q29: 15 | R29: 16 | S29: 17 | T29: 18 | U29: 19 | V29: 20
A30: Maschinenbestand | B30: =$B$4 -> 12 | C30: =B30-B31+B37 -> 13 | D30: =C30-C31+C37 -> 14 | E30: =D30-D31+D37 -> 15 | F30: 16 | G30: 17 | H30: 7 | I30: 6 | J30: 6 | K30: 5 | L30: 5 | M30: =L30-L31+L37 -> 4 | N30: 2 | O30: 3 | P30: 2 | Q30: 2 | R30: 1 | S30: 1 | T30: 1 | U30: 0 | V30: 0
A31: Betriebsmittelabgang | B31: 0 | C31: 0 | D31: 0 | E31: 0 | F31: 0 | G31: =B30 -> 12 | H31: =B37 -> 1 | I31: 1 | J31: 1 | K31: 1 | L31: 1 | M31: 2 | N31: 0 | O31: 1 | P31: 0 | Q31: 1 | R31: 0 | S31: 0 | T31: 1 | U31: 0 | V31: 0
A32: Kapazitäsrückgang während des Jahres | B32: =B30*$B$6 -> 60000 | C32: =C30*$B$6 -> 65000 | D32: =D30*$B$6 -> 70000 | E32: =E30*$B$6 -> 75000 | F32: 80000 | G32: 85000 | H32: 35000 | I32: 30000 | J32: 30000 | K32: 25000 | L32: 25000 | M32: =M30*$B$6 -> 20000 | N32: 10000 | O32: 15000 | P32: 10000 | Q32: 10000 | R32: 5000 | S32: 5000 | T32: 5000 | U32: 0 | V32: 0
A33: Kapitalfreisetzung am Jahresende | B33: =$F28*B30 -> 60000 | C33: =$F28*C30 -> 65000 | D33: =$F28*D30 -> 70000 | E33: =$F28*E30 -> 75000 | F33: 80000 | G33: 85000 | H33: 35000 | I33: 30000 | J33: 30000 | K33: 25000 | L33: 25000 | M33: =$F28*M30 -> 20000 | N33: 10000 | O33: 15000 | P33: 10000 | Q33: 10000 | R33: 5000 | S33: 5000 | T33: 5000 | U33: 0 | V33: 0
A34: Freisetzung aus stiller Selbstfinanzierung am Jahresende | B34: =($B$5-$F28)*B30 -> -50000 | C34: =($B$5-$F28)*C30 -> -54166.66667 | D34: =($B$5-$F28)*D30 -> -58333.33333 | E34: =($B$5-$F28)*E30 -> -62500 | F34: -66666.66667 | G34: -70833.33333 | H34: -29166.66667 | I34: -25000 | J34: -25000 | K34: -20833.33333 | L34: -20833.33333 | M34: =($B$5-$F28)*M30 -> -16666.66667 | N34: -8333.333333 | O34: -12500 | P34: -8333.333333 | Q34: -8333.333333 | R34: -4166.666667 | S34: -4166.666667 | T34: -4166.666667 | U34: 0 | V34: 0
A35: freigesetzte Mittel aus Vorjahr | B35: 0 | C35: =B36-B38 -> 0 | D35: =C36-C38 -> 833.3333333 | E35: =D36-D38 -> 2500 | F35: 5000 | G35: 8333.333333 | H35: 2500 | I35: 8333.333333 | J35: 3333.333333 | K35: 8333.333333 | L35: 2500 | M35: =L36-L38 -> 6666.666667 | N35: 10000 | O35: 1666.666667 | P35: 4166.666667 | Q35: 5833.333333 | R35: 7500 | S35: 8333.333333 | T35: 9166.666667 | U35: 10000 | V35: 10000
A36: Gesamtfreisetzung | B36: =B33+B34+B35 -> 10000 | C36: 10833.33333 | D36: 12500 | E36: 15000 | F36: 18333.33333 | G36: 22500 | H36: 8333.333333 | I36: 13333.33333 | J36: 8333.333333 | K36: 12500 | L36: 6666.666667 | M36: 10000 | N36: 11666.66667 | O36: 4166.666667 | P36: 5833.333333 | Q36: 7500 | R36: 8333.333333 | S36: 9166.666667 | T36: 10000 | U36: 10000 | V36: 10000
A37: Anzahl neuer Maschinen | B37: =INT(B36/$B$2) -> 1 | C37: 1 | D37: 1 | E37: 1 | F37: 1 | G37: 2 | H37: 0 | I37: 1 | J37: 0 | K37: 1 | L37: 0 | M37: 0 | N37: 1 | O37: 0 | P37: 0 | Q37: 0 | R37: 0 | S37: 0 | T37: 0 | U37: 0 | V37: 0
A38: Investition | B38: =B37*$B$2 -> 10000 | C38: 10000 | D38: 10000 | E38: 10000 | F38: 10000 | G38: 20000 | H38: 0 | I38: 10000 | J38: 0 | K38: 10000 | L38: 0 | M38: 0 | N38: 10000 | O38: 0 | P38: 0 | Q38: 0 | R38: 0 | S38: 0 | T38: 0 | U38: 0 | V38: 0
A39: Gesamtkapazität Jahresanfang | B39: =B30*$B$6*$B28 -> 120000 | C39: =B42 -> 70000 | D39: =C42 -> 15000 | E39: =D42 -> -45000 | F39: -110000 | G39: -180000 | H39: -245000 | I39: -280000 | J39: -300000 | K39: -330000 | L39: -345000 | M39: =L42 -> -370000 | N39: -390000 | O39: -390000 | P39: -405000 | Q39: -415000 | R39: -425000 | S39: -430000 | T39: -435000 | U39: -440000 | V39: -440000
A40: Kapazitäsrückgang während des Jahres | B40: =B30*$B$6 -> 60000 | C40: =C30*$B$6 -> 65000 | D40: =D30*$B$6 -> 70000 | E40: =E30*$B$6 -> 75000 | F40: 80000 | G40: 85000 | H40: 35000 | I40: 30000 | J40: 30000 | K40: 25000 | L40: 25000 | M40: =M30*$B$6 -> 20000 | N40: 10000 | O40: 15000 | P40: 10000 | Q40: 10000 | R40: 5000 | S40: 5000 | T40: 5000 | U40: 0 | V40: 0
A41: Gesamtkapazitätszunahme | B41: =B37*$B$6*$B28 -> 10000 | C41: =C37*$B$6*$B28 -> 10000 | D41: =D37*$B$6*$B28 -> 10000 | E41: =E37*$B$6*$B28 -> 10000 | F41: 10000 | G41: 20000 | H41: 0 | I41: 10000 | J41: 0 | K41: 10000 | L41: 0 | M41: =M37*$B$6*$B28 -> 0 | N41: 10000 | O41: 0 | P41: 0 | Q41: 0 | R41: 0 | S41: 0 | T41: 0 | U41: 0 | V41: 0
A42: Gesamtkapazität Jahresende | B42: =B39-B40+B41 -> 70000 | C42: 15000 | D42: -45000 | E42: -110000 | F42: -180000 | G42: -245000 | H42: -280000 | I42: -300000 | J42: -330000 | K42: -345000 | L42: -370000 | M42: -390000 | N42: -390000 | O42: -405000 | P42: -415000 | Q42: -425000 | R42: -430000 | S42: -435000 | T42: -440000 | U42: -440000 | V42: -440000
A43: Periodenkapazität am Jahresanfang | B43: =B30*$B$6 -> 60000 | C43: 65000 | D43: 70000 | E43: =E30*$B$6 -> 75000 | F43: 80000 | G43: 85000 | H43: 35000 | I43: 30000 | J43: 30000 | K43: 25000 | L43: 25000 | M43: =M30*$B$6 -> 20000 | N43: 10000 | O43: 15000 | P43: 10000 | Q43: 10000 | R43: 5000 | S43: 5000 | T43: 5000 | U43: 0 | V43: 0
A44: Periodenkapazitätsabnahme | B44: 0 | C44: 0 | D44: 0 | E44: =E31*$B$6 -> 0 | F44: 0 | G44: 60000 | H44: 5000 | I44: 5000 | J44: 5000 | K44: 5000 | L44: 5000 | M44: =M31*$B$6 -> 10000 | N44: 0 | O44: 5000 | P44: 0 | Q44: 5000 | R44: 0 | S44: 0 | T44: 5000 | U44: 0 | V44: 0
A45: Periodenkapazitätszunahme | B45: =B37*$B$6 -> 5000 | C45: =C37*$B$6 -> 5000 | D45: =D37*$B$6 -> 5000 | E45: =E37*$B$6 -> 5000 | F45: 5000 | G45: 10000 | H45: 0 | I45: 5000 | J45: 0 | K45: 5000 | L45: 0 | M45: =M37*$B$6 -> 0 | N45: 5000 | O45: 0 | P45: 0 | Q45: 0 | R45: 0 | S45: 0 | T45: 0 | U45: 0 | V45: 0
A46: Periodenkapazität am Jahresende | B46: =B43-B44+B45 -> 65000 | C46: =C43+C45 -> 70000 | D46: 75000 | E46: 80000 | F46: 85000 | G46: 95000 | H46: 35000 | I46: 35000 | J46: 30000 | K46: 30000 | L46: 25000 | M46: 20000 | N46: 15000 | O46: 15000 | P46: 10000 | Q46: 10000 | R46: 5000 | S46: 5000 | T46: 5000 | U46: 0 | V46: 0
A48: kalkulatorische Nutzungsdauer in Jahren | B48: 3 | C48: kalkulatorische Abschreibung je Machine | F48: =$B$2/$B48 -> 3333.333333
A49: Periode | B49: 0 | C49: 1 | D49: 2 | E49: 3 | F49: 4 | G49: 5 | H49: 6 | I49: 7 | J49: 8 | K49: 9 | L49: 10 | M49: 11 | N49: 12 | O49: 13 | P49: 14 | Q49: 15 | R49: 16 | S49: 17 | T49: 18 | U49: 19 | V49: 20
A50: Maschinenbestand | B50: =$B$4 -> 12 | C50: =B50-B51+B57 -> 13 | D50: =C50-C51+C57 -> 14 | E50: =D50-D51+D57 -> 15 | F50: 16 | G50: 17 | H50: 7 | I50: 6 | J50: 6 | K50: 5 | L50: 5 | M50: =L50-L51+L57 -> 4 | N50: 3 | O50: 3 | P50: 2 | Q50: 2 | R50: 1 | S50: 1 | T50: 1 | U50: 1 | V50: 1
A51: Betriebsmittelabgang | B51: 0 | C51: 0 | D51: 0 | E51: 0 | F51: 0 | G51: =B50 -> 12 | H51: =B57 -> 1 | I51: 1 | J51: 1 | K51: 1 | L51: 1 | M51: 2 | N51: 0 | O51: 1 | P51: 0 | Q51: 1 | R51: 0 | S51: 1 | T51: 0 | U51: 0 | V51: 0
A52: Kapazitäsrückgang während des Jahres | B52: =B50*$B$6 -> 60000 | C52: =C50*$B$6 -> 65000 | D52: =D50*$B$6 -> 70000 | E52: =E50*$B$6 -> 75000 | F52: 80000 | G52: 85000 | H52: 35000 | I52: 30000 | J52: 30000 | K52: 25000 | L52: 25000 | M52: =M50*$B$6 -> 20000 | N52: 15000 | O52: 15000 | P52: 10000 | Q52: 10000 | R52: 5000 | S52: 5000 | T52: 5000 | U52: 5000 | V52: 5000
A53: Kapitalfreisetzung am Jahresende | B53: =$F48*B50 -> 40000 | C53: =$F48*C50 -> 43333.33333 | D53: =$F48*D50 -> 46666.66667 | E53: =$F48*E50 -> 50000 | F53: 53333.33333 | G53: 56666.66667 | H53: 23333.33333 | I53: 20000 | J53: 20000 | K53: 16666.66667 | L53: 16666.66667 | M53: =$F48*M50 -> 13333.33333 | N53: 10000 | O53: 10000 | P53: 6666.666667 | Q53: 6666.666667 | R53: 3333.333333 | S53: 3333.333333 | T53: 3333.333333 | U53: 3333.333333 | V53: 3333.333333
A54: Freisetzung aus stiller Selbstfinanzierung am Jahresende | B54: =($B$5-$F48)*B50 -> -30000 | C54: =($B$5-$F48)*C50 -> -32500 | D54: =($B$5-$F48)*D50 -> -35000 | E54: =($B$5-$F48)*E50 -> -37500 | F54: -40000 | G54: -42500 | H54: -17500 | I54: -15000 | J54: -15000 | K54: -12500 | L54: -12500 | M54: =($B$5-$F48)*M50 -> -10000 | N54: -7500 | O54: -7500 | P54: -5000 | Q54: -5000 | R54: -2500 | S54: -2500 | T54: -2500 | U54: -2500 | V54: -2500
A55: freigesetzte Mittel aus Vorjahr | B55: 0 | C55: =B56-B58 -> 0 | D55: =C56-C58 -> 833.3333333 | E55: =D56-D58 -> 2500 | F55: 5000 | G55: 8333.333333 | H55: 2500 | I55: 8333.333333 | J55: 3333.333333 | K55: 8333.333333 | L55: 2500 | M55: =L56-L58 -> 6666.666667 | N55: 2.000888344e-11 | O55: 2500 | P55: 5000 | Q55: 6666.666667 | R55: 8333.333333 | S55: 9166.666667 | T55: 2.182787284e-11 | U55: 833.3333333 | V55: 1666.666667
A56: Gesamtfreisetzung | B56: =B53+B54+B55 -> 10000 | C56: 10833.33333 | D56: 12500 | E56: 15000 | F56: 18333.33333 | G56: 22500 | H56: 8333.333333 | I56: 13333.33333 | J56: 8333.333333 | K56: 12500 | L56: 6666.666667 | M56: 10000 | N56: 2500 | O56: 5000 | P56: 6666.666667 | Q56: 8333.333333 | R56: 9166.666667 | S56: 10000 | T56: 833.3333333 | U56: 1666.666667 | V56: 2500
A57: Anzahl neuer Maschinen | B57: =INT(B56/$B$2) -> 1 | C57: 1 | D57: 1 | E57: 1 | F57: 1 | G57: 2 | H57: 0 | I57: 1 | J57: 0 | K57: 1 | L57: 0 | M57: 1 | N57: 0 | O57: 0 | P57: 0 | Q57: 0 | R57: 0 | S57: 1 | T57: 0 | U57: 0 | V57: 0
A58: Investition | B58: =B57*$B$2 -> 10000 | C58: 10000 | D58: 10000 | E58: 10000 | F58: 10000 | G58: 20000 | H58: 0 | I58: 10000 | J58: 0 | K58: 10000 | L58: 0 | M58: 10000 | N58: 0 | O58: 0 | P58: 0 | Q58: 0 | R58: 0 | S58: 10000 | T58: 0 | U58: 0 | V58: 0
A59: Gesamtkapazität Jahresanfang | B59: =B50*$B$6*$B48 -> 180000 | C59: =B62 -> 135000 | D59: 85000 | E59: 30000 | F59: -30000 | G59: -95000 | H59: -150000 | I59: -185000 | J59: -200000 | K59: -230000 | L59: -240000 | M59: =L62 -> -265000 | N59: -270000 | O59: -285000 | P59: -300000 | Q59: -310000 | R59: -320000 | S59: -325000 | T59: -315000 | U59: -320000 | V59: -325000
A60: Kapazitäsrückgang während des Jahres | B60: =B50*$B$6 -> 60000 | C60: 65000 | D60: 70000 | E60: 75000 | F60: 80000 | G60: 85000 | H60: 35000 | I60: 30000 | J60: 30000 | K60: 25000 | L60: 25000 | M60: =M50*$B$6 -> 20000 | N60: 15000 | O60: 15000 | P60: 10000 | Q60: 10000 | R60: 5000 | S60: 5000 | T60: 5000 | U60: 5000 | V60: 5000
A61: Gesamtkapazitätszunahme | B61: =B57*$B$6*$B48 -> 15000 | C61: 15000 | D61: 15000 | E61: 15000 | F61: 15000 | G61: 30000 | H61: 0 | I61: 15000 | J61: 0 | K61: 15000 | L61: 0 | M61: =M57*$B$6*$B48 -> 15000 | N61: 0 | O61: 0 | P61: 0 | Q61: 0 | R61: 0 | S61: 15000 | T61: 0 | U61: 0 | V61: 0
A62: Gesamtkapazität Jahresende | B62: =B59-B60+B61 -> 135000 | C62: 85000 | D62: 30000 | E62: -30000 | F62: -95000 | G62: -150000 | H62: -185000 | I62: -200000 | J62: -230000 | K62: -240000 | L62: -265000 | M62: -270000 | N62: -285000 | O62: -300000 | P62: -310000 | Q62: -320000 | R62: -325000 | S62: -315000 | T62: -320000 | U62: -325000 | V62: -330000
A63: Periodenkapazität am Jahresanfang | B63: =B50*$B$6 -> 60000 | C63: 65000 | D63: 70000 | E63: 75000 | F63: 80000 | G63: 85000 | H63: 35000 | I63: 30000 | J63: 30000 | K63: 25000 | L63: 25000 | M63: =M50*$B$6 -> 20000 | N63: 15000 | O63: 15000 | P63: 10000 | Q63: 10000 | R63: 5000 | S63: 5000 | T63: 5000 | U63: 5000 | V63: 5000
A64: Periodenkapazitätsabnahme | B64: =B51*$B$6 -> 0 | C64: 0 | D64: 0 | E64: 0 | F64: 0 | G64: 60000 | H64: 5000 | I64: 5000 | J64: 5000 | K64: 5000 | L64: 5000 | M64: =M51*$B$6 -> 10000 | N64: 0 | O64: 5000 | P64: 0 | Q64: 5000 | R64: 0 | S64: 5000 | T64: 0 | U64: 0 | V64: 0
A65: Periodenkapazitätszunahme | B65: =B57*$B$6 -> 5000 | C65: 5000 | D65: 5000 | E65: 5000 | F65: 5000 | G65: 10000 | H65: 0 | I65: 5000 | J65: 0 | K65: 5000 | L65: 0 | M65: =M57*$B$6 -> 5000 | N65: 0 | O65: 0 | P65: 0 | Q65: 0 | R65: 0 | S65: 5000 | T65: 0 | U65: 0 | V65: 0
A66: Periodenkapazität am Jahresende | B66: =B63-B64+B65 -> 65000 | C66: =C63+C65 -> 70000 | D66: 75000 | E66: 80000 | F66: 85000 | G66: 95000 | H66: 35000 | I66: 35000 | J66: 30000 | K66: 30000 | L66: 25000 | M66: 25000 | N66: 15000 | O66: 15000 | P66: 10000 | Q66: 10000 | R66: 5000 | S66: 10000 | T66: 5000 | U66: 5000 | V66: 5000
A68: kalkulatorische Nutzungsdauer in Jahren | B68: 4 | C68: kalkulatorische Abschreibung je Machine | F68: =$B$2/$B68 -> 2500
A69: Periode | B69: 0 | C69: 1 | D69: 2 | E69: 3 | F69: 4 | G69: 5 | H69: 6 | I69: 7 | J69: 8 | K69: 9 | L69: 10 | M69: 11 | N69: 12 | O69: 13 | P69: 14 | Q69: 15 | R69: 16 | S69: 17 | T69: 18 | U69: 19 | V69: 20
A70: Maschinenbestand | B70: =$B$4 -> 12 | C70: =B70-B71+B77 -> 13 | D70: =C70-C71+C77 -> 14 | E70: =D70-D71+D77 -> 15 | F70: 16 | G70: 17 | H70: 7 | I70: 6 | J70: 6 | K70: 5 | L70: 5 | M70: =L70-L71+L77 -> 4 | N70: 3 | O70: 3 | P70: 2 | Q70: 2 | R70: 1 | S70: 1 | T70: 1 | U70: 1 | V70: 1
A71: Betriebsmittelabgang | B71: 0 | C71: 0 | D71: 0 | E71: 0 | F71: 0 | G71: =B70 -> 12 | H71: =B77 -> 1 | I71: 1 | J71: 1 | K71: 1 | L71: 1 | M71: 2 | N71: 0 | O71: 1 | P71: 0 | Q71: 1 | R71: 0 | S71: 1 | T71: 0 | U71: 0 | V71: 0
A72: Kapazitäsrückgang während des Jahres | B72: =B70*$B$6 -> 60000 | C72: =C70*$B$6 -> 65000 | D72: =D70*$B$6 -> 70000 | E72: =E70*$B$6 -> 75000 | F72: 80000 | G72: 85000 | H72: 35000 | I72: 30000 | J72: 30000 | K72: 25000 | L72: 25000 | M72: =M70*$B$6 -> 20000 | N72: 15000 | O72: 15000 | P72: 10000 | Q72: 10000 | R72: 5000 | S72: 5000 | T72: 5000 | U72: 5000 | V72: 5000
A73: Kapitalfreisetzung am Jahresende | B73: =$F68*B70 -> 30000 | C73: =$F68*C70 -> 32500 | D73: =$F68*D70 -> 35000 | E73: =$F68*E70 -> 37500 | F73: 40000 | G73: 42500 | H73: 17500 | I73: 15000 | J73: 15000 | K73: 12500 | L73: 12500 | M73: =$F68*M70 -> 10000 | N73: 7500 | O73: 7500 | P73: 5000 | Q73: 5000 | R73: 2500 | S73: 2500 | T73: 2500 | U73: 2500 | V73: 2500
A74: Freisetzung aus stiller Selbstfinanzierung am Jahresende | B74: =($B$5-$F68)*B70 -> -20000 | C74: =($B$5-$F68)*C70 -> -21666.66667 | D74: =($B$5-$F68)*D70 -> -23333.33333 | E74: =($B$5-$F68)*E70 -> -25000 | F74: -26666.66667 | G74: -28333.33333 | H74: -11666.66667 | I74: -10000 | J74: -10000 | K74: -8333.333333 | L74: -8333.333333 | M74: =($B$5-$F68)*M70 -> -6666.666667 | N74: -5000 | O74: -5000 | P74: -3333.333333 | Q74: -3333.333333 | R74: -1666.666667 | S74: -1666.666667 | T74: -1666.666667 | U74: -1666.666667 | V74: -1666.666667
A75: freigesetzte Mittel aus Vorjahr | B75: 0 | C75: =B76-B78 -> 0 | D75: =C76-C78 -> 833.3333333 | E75: =D76-D78 -> 2500 | F75: 5000 | G75: 8333.333333 | H75: 2500 | I75: 8333.333333 | J75: 3333.333333 | K75: 8333.333333 | L75: 2500 | M75: =L76-L78 -> 6666.666667 | N75: 1.455191523e-11 | O75: 2500 | P75: 5000 | Q75: 6666.666667 | R75: 8333.333333 | S75: 9166.666667 | T75: 1.637090463e-11 | U75: 833.3333333 | V75: 1666.666667
A76: Gesamtfreisetzung | B76: =B73+B74+B75 -> 10000 | C76: 10833.33333 | D76: 12500 | E76: 15000 | F76: 18333.33333 | G76: 22500 | H76: 8333.333333 | I76: 13333.33333 | J76: 8333.333333 | K76: 12500 | L76: 6666.666667 | M76: 10000 | N76: 2500 | O76: 5000 | P76: 6666.666667 | Q76: 8333.333333 | R76: 9166.666667 | S76: 10000 | T76: 833.3333333 | U76: 1666.666667 | V76: 2500
A77: Anzahl neuer Maschinen | B77: =INT(B76/$B$2) -> 1 | C77: 1 | D77: 1 | E77: 1 | F77: 1 | G77: 2 | H77: 0 | I77: 1 | J77: 0 | K77: 1 | L77: 0 | M77: 1 | N77: 0 | O77: 0 | P77: 0 | Q77: 0 | R77: 0 | S77: 1 | T77: 0 | U77: 0 | V77: 0
A78: Investition | B78: =B77*$B$2 -> 10000 | C78: 10000 | D78: 10000 | E78: 10000 | F78: 10000 | G78: 20000 | H78: 0 | I78: 10000 | J78: 0 | K78: 10000 | L78: 0 | M78: 10000 | N78: 0 | O78: 0 | P78: 0 | Q78: 0 | R78: 0 | S78: 10000 | T78: 0 | U78: 0 | V78: 0
A79: Gesamtkapazität Jahresanfang | B79: =B70*$B$6*$B68 -> 240000 | C79: =B82 -> 200000 | D79: =C82 -> 155000 | E79: =D82 -> 105000 | F79: 50000 | G79: -10000 | H79: -55000 | I79: -90000 | J79: -100000 | K79: -130000 | L79: -135000 | M79: =L82 -> -160000 | N79: -160000 | O79: -175000 | P79: -190000 | Q79: -200000 | R79: -210000 | S79: -215000 | T79: -200000 | U79: -205000 | V79: -210000
A80: Kapazitäsrückgang während des Jahres | B80: =B70*$B$6 -> 60000 | C80: =C70*$B$6 -> 65000 | D80: =D70*$B$6 -> 70000 | E80: =E70*$B$6 -> 75000 | F80: 80000 | G80: 85000 | H80: 35000 | I80: 30000 | J80: 30000 | K80: 25000 | L80: 25000 | M80: =M70*$B$6 -> 20000 | N80: 15000 | O80: 15000 | P80: 10000 | Q80: 10000 | R80: 5000 | S80: 5000 | T80: 5000 | U80: 5000 | V80: 5000
A81: Gesamtkapazitätszunahme | B81: =B77*$B$6*$B68 -> 20000 | C81: =C77*$B$6*$B68 -> 20000 | D81: =D77*$B$6*$B68 -> 20000 | E81: =E77*$B$6*$B68 -> 20000 | F81: 20000 | G81: 40000 | H81: 0 | I81: 20000 | J81: 0 | K81: 20000 | L81: 0 | M81: =M77*$B$6*$B68 -> 20000 | N81: 0 | O81: 0 | P81: 0 | Q81: 0 | R81: 0 | S81: 20000 | T81: 0 | U81: 0 | V81: 0
A82: Gesamtkapazität Jahresende | B82: =B79-B80+B81 -> 200000 | C82: 155000 | D82: 105000 | E82: 50000 | F82: -10000 | G82: -55000 | H82: -90000 | I82: -100000 | J82: -130000 | K82: -135000 | L82: -160000 | M82: -160000 | N82: -175000 | O82: -190000 | P82: -200000 | Q82: -210000 | R82: -215000 | S82: -200000 | T82: -205000 | U82: -210000 | V82: -215000
A83: Periodenkapazität am Jahresanfang | B83: =B70*$B$6 -> 60000 | C83: 65000 | D83: 70000 | E83: =E70*$B$6 -> 75000 | F83: 80000 | G83: 85000 | H83: 35000 | I83: 30000 | J83: 30000 | K83: 25000 | L83: 25000 | M83: =M70*$B$6 -> 20000 | N83: 15000 | O83: 15000 | P83: 10000 | Q83: 10000 | R83: 5000 | S83: 5000 | T83: 5000 | U83: 5000 | V83: 5000
A84: Periodenkapazitätsabnahme | B84: 0 | C84: 0 | D84: 0 | E84: =E71*$B$6 -> 0 | F84: 0 | G84: 60000 | H84: 5000 | I84: 5000 | J84: 5000 | K84: 5000 | L84: 5000 | M84: =M71*$B$6 -> 10000 | N84: 0 | O84: 5000 | P84: 0 | Q84: 5000 | R84: 0 | S84: 5000 | T84: 0 | U84: 0 | V84: 0
A85: Periodenkapazitätszunahme | B85: =B77*$B$6 -> 5000 | C85: =C77*$B$6 -> 5000 | D85: =D77*$B$6 -> 5000 | E85: =E77*$B$6 -> 5000 | F85: 5000 | G85: 10000 | H85: 0 | I85: 5000 | J85: 0 | K85: 5000 | L85: 0 | M85: =M77*$B$6 -> 5000 | N85: 0 | O85: 0 | P85: 0 | Q85: 0 | R85: 0 | S85: 5000 | T85: 0 | U85: 0 | V85: 0
A86: Periodenkapazität am Jahresende | B86: =B83-B84+B85 -> 65000 | C86: =C83+C85 -> 70000 | D86: 75000 | E86: 80000 | F86: 85000 | G86: 95000 | H86: 35000 | I86: 35000 | J86: 30000 | K86: 30000 | L86: 25000 | M86: 25000 | N86: 15000 | O86: 15000 | P86: 10000 | Q86: 10000 | R86: 5000 | S86: 10000 | T86: 5000 | U86: 5000 | V86: 5000
A88: kalkulatorische Nutzungsdauer in Jahren | B88: 5 | C88: kalkulatorische Abschreibung je Machine | F88: =$B$2/$B88 -> 2000
A89: Periode | B89: 0 | C89: 1 | D89: 2 | E89: 3 | F89: 4 | G89: 5 | H89: 6 | I89: 7 | J89: 8 | K89: 9 | L89: 10 | M89: 11 | N89: 12 | O89: 13 | P89: 14 | Q89: 15 | R89: 16 | S89: 17 | T89: 18 | U89: 19 | V89: 20
A90: Maschinenbestand | B90: =$B$4 -> 12 | C90: =B90-B91+B97 -> 13 | D90: =C90-C91+C97 -> 14 | E90: =D90-D91+D97 -> 15 | F90: 16 | G90: 17 | H90: 7 | I90: 6 | J90: 6 | K90: 5 | L90: 5 | M90: =L90-L91+L97 -> 4 | N90: 3 | O90: 3 | P90: 2 | Q90: 2 | R90: 1 | S90: 1 | T90: 1 | U90: 1 | V90: 1
A91: Betriebsmittelabgang | B91: 0 | C91: 0 | D91: 0 | E91: 0 | F91: 0 | G91: =B90 -> 12 | H91: =B97 -> 1 | I91: 1 | J91: 1 | K91: 1 | L91: 1 | M91: 2 | N91: 0 | O91: 1 | P91: 0 | Q91: 1 | R91: 0 | S91: 1 | T91: 0 | U91: 0 | V91: 0
A92: Kapazitäsrückgang während des Jahres | B92: =B90*$B$6 -> 60000 | C92: =C90*$B$6 -> 65000 | D92: =D90*$B$6 -> 70000 | E92: =E90*$B$6 -> 75000 | F92: 80000 | G92: 85000 | H92: 35000 | I92: 30000 | J92: 30000 | K92: 25000 | L92: 25000 | M92: =M90*$B$6 -> 20000 | N92: 15000 | O92: 15000 | P92: 10000 | Q92: 10000 | R92: 5000 | S92: 5000 | T92: 5000 | U92: 5000 | V92: 5000
A93: Kapitalfreisetzung am Jahresende | B93: =$F88*B90 -> 24000 | C93: =$F88*C90 -> 26000 | D93: =$F88*D90 -> 28000 | E93: =$F88*E90 -> 30000 | F93: 32000 | G93: 34000 | H93: 14000 | I93: 12000 | J93: 12000 | K93: 10000 | L93: 10000 | M93: =$F88*M90 -> 8000 | N93: 6000 | O93: 6000 | P93: 4000 | Q93: 4000 | R93: 2000 | S93: 2000 | T93: 2000 | U93: 2000 | V93: 2000
A94: Freisetzung aus stiller Selbstfinanzierung am Jahresende | B94: =($B$5-$F88)*B90 -> -14000 | C94: =($B$5-$F88)*C90 -> -15166.66667 | D94: =($B$5-$F88)*D90 -> -16333.33333 | E94: =($B$5-$F88)*E90 -> -17500 | F94: -18666.66667 | G94: -19833.33333 | H94: -8166.666667 | I94: -7000 | J94: -7000 | K94: -5833.333333 | L94: -5833.333333 | M94: =($B$5-$F88)*M90 -> -4666.666667 | N94: -3500 | O94: -3500 | P94: -2333.333333 | Q94: -2333.333333 | R94: -1166.666667 | S94: -1166.666667 | T94: -1166.666667 | U94: -1166.666667 | V94: -1166.666667
A95: freigesetzte Mittel aus Vorjahr | B95: 0 | C95: =B96-B98 -> 0 | D95: =C96-C98 -> 833.3333333 | E95: =D96-D98 -> 2500 | F95: 5000 | G95: 8333.333333 | H95: 2500 | I95: 8333.333333 | J95: 3333.333333 | K95: 8333.333333 | L95: 2500 | M95: =L96-L98 -> 6666.666667 | N95: 1.637090463e-11 | O95: 2500 | P95: 5000 | Q95: 6666.666667 | R95: 8333.333333 | S95: 9166.666667 | T95: 1.818989404e-11 | U95: 833.3333333 | V95: 1666.666667
A96: Gesamtfreisetzung | B96: =B93+B94+B95 -> 10000 | C96: 10833.33333 | D96: 12500 | E96: 15000 | F96: 18333.33333 | G96: 22500 | H96: 8333.333333 | I96: 13333.33333 | J96: 8333.333333 | K96: 12500 | L96: 6666.666667 | M96: 10000 | N96: 2500 | O96: 5000 | P96: 6666.666667 | Q96: 8333.333333 | R96: 9166.666667 | S96: 10000 | T96: 833.3333333 | U96: 1666.666667 | V96: 2500
A97: Anzahl neuer Maschinen | B97: =INT(B96/$B$2) -> 1 | C97: =INT(C96/$B$2) -> 1 | D97: 1 | E97: 1 | F97: 1 | G97: 2 | H97: 0 | I97: 1 | J97: 0 | K97: 1 | L97: 0 | M97: 1 | N97: 0 | O97: 0 | P97: 0 | Q97: 0 | R97: 0 | S97: 1 | T97: 0 | U97: 0 | V97: 0
A98: Investition | B98: =B97*$B$2 -> 10000 | C98: 10000 | D98: 10000 | E98: 10000 | F98: 10000 | G98: 20000 | H98: 0 | I98: 10000 | J98: 0 | K98: 10000 | L98: 0 | M98: 10000 | N98: 0 | O98: 0 | P98: 0 | Q98: 0 | R98: 0 | S98: 10000 | T98: 0 | U98: 0 | V98: 0
A99: Gesamtkapazität Jahresanfang | B99: =B90*$B$6*$B88 -> 300000 | C99: =B102 -> 265000 | D99: =C102 -> 225000 | E99: =D102 -> 180000 | F99: 130000 | G99: 75000 | H99: 40000 | I99: 5000 | J99: 0 | K99: -30000 | L99: -30000 | M99: =L102 -> -55000 | N99: -50000 | O99: -65000 | P99: -80000 | Q99: -90000 | R99: -100000 | S99: -105000 | T99: -85000 | U99: -90000 | V99: -95000
A100: Kapazitäsrückgang während des Jahres | B100: =B90*$B$6 -> 60000 | C100: =C90*$B$6 -> 65000 | D100: =D90*$B$6 -> 70000 | E100: =E90*$B$6 -> 75000 | F100: 80000 | G100: 85000 | H100: 35000 | I100: 30000 | J100: 30000 | K100: 25000 | L100: 25000 | M100: =M90*$B$6 -> 20000 | N100: 15000 | O100: 15000 | P100: 10000 | Q100: 10000 | R100: 5000 | S100: 5000 | T100: 5000 | U100: 5000 | V100: 5000
A101: Gesamtkapazitätszunahme | B101: =B97*$B$6*$B88 -> 25000 | C101: =C97*$B$6*$B88 -> 25000 | D101: =D97*$B$6*$B88 -> 25000 | E101: =E97*$B$6*$B88 -> 25000 | F101: 25000 | G101: 50000 | H101: 0 | I101: 25000 | J101: 0 | K101: 25000 | L101: 0 | M101: =M97*$B$6*$B88 -> 25000 | N101: 0 | O101: 0 | P101: 0 | Q101: 0 | R101: 0 | S101: 25000 | T101: 0 | U101: 0 | V101: 0
A102: Gesamtkapazität Jahresende | B102: =B99-B100+B101 -> 265000 | C102: 225000 | D102: 180000 | E102: 130000 | F102: 75000 | G102: 40000 | H102: 5000 | I102: 0 | J102: -30000 | K102: -30000 | L102: -55000 | M102: -50000 | N102: -65000 | O102: -80000 | P102: -90000 | Q102: -100000 | R102: -105000 | S102: -85000 | T102: -90000 | U102: -95000 | V102: -100000
A103: Periodenkapazität am Jahresanfang | B103: =B90*$B$6 -> 60000 | C103: 65000 | D103: 70000 | E103: =E90*$B$6 -> 75000 | F103: 80000 | G103: 85000 | H103: 35000 | I103: 30000 | J103: 30000 | K103: 25000 | L103: 25000 | M103: =M90*$B$6 -> 20000 | N103: 15000 | O103: 15000 | P103: 10000 | Q103: 10000 | R103: 5000 | S103: 5000 | T103: 5000 | U103: 5000 | V103: 5000
A104: Periodenkapazitätsabnahme | B104: 0 | C104: 0 | D104: 0 | E104: =E91*$B$6 -> 0 | F104: 0 | G104: 60000 | H104: 5000 | I104: 5000 | J104: 5000 | K104: 5000 | L104: 5000 | M104: =M91*$B$6 -> 10000 | N104: 0 | O104: 5000 | P104: 0 | Q104: 5000 | R104: 0 | S104: 5000 | T104: 0 | U104: 0 | V104: 0
A105: Periodenkapazitätszunahme | B105: =B97*$B$6 -> 5000 | C105: =C97*$B$6 -> 5000 | D105: =D97*$B$6 -> 5000 | E105: =E97*$B$6 -> 5000 | F105: 5000 | G105: 10000 | H105: 0 | I105: 5000 | J105: 0 | K105: 5000 | L105: 0 | M105: =M97*$B$6 -> 5000 | N105: 0 | O105: 0 | P105: 0 | Q105: 0 | R105: 0 | S105: 5000 | T105: 0 | U105: 0 | V105: 0
A106: Periodenkapazität am Jahresende | B106: =B103-B104+B105 -> 65000 | C106: =C103+C105 -> 70000 | D106: 75000 | E106: 80000 | F106: 85000 | G106: 95000 | H106: 35000 | I106: 35000 | J106: 30000 | K106: 30000 | L106: 25000 | M106: 25000 | N106: 15000 | O106: 15000 | P106: 10000 | Q106: 10000 | R106: 5000 | S106: 10000 | T106: 5000 | U106: 5000 | V106: 5000
A108: kalkulatorische Nutzungsdauer in Jahren | B108: 6 | C108: kalkulatorische Abschreibung je Machine | F108: =$B$2/$B108 -> 1666.666667
A109: Periode | B109: 0 | C109: 1 | D109: 2 | E109: 3 | F109: 4 | G109: 5 | H109: 6 | I109: 7 | J109: 8 | K109: 9 | L109: 10 | M109: 11 | N109: 12 | O109: 13 | P109: 14 | Q109: 15 | R109: 16 | S109: 17 | T109: 18 | U109: 19 | V109: 20
A110: Maschinenbestand | B110: =$B$4 -> 12 | C110: =B110-B111+B117 -> 13 | D110: =C110-C111+C117 -> 14 | E110: =D110-D111+D117 -> 15 | F110: 16 | G110: 17 | H110: 7 | I110: 6 | J110: 6 | K110: 5 | L110: 5 | M110: =L110-L111+L117 -> 4 | N110: 3 | O110: 3 | P110: 2 | Q110: 2 | R110: 1 | S110: 1 | T110: 1 | U110: 1 | V110: 1
A111: Betriebsmittelabgang | B111: 0 | C111: 0 | D111: 0 | E111: 0 | F111: 0 | G111: =B110 -> 12 | H111: =B117 -> 1 | I111: 1 | J111: 1 | K111: 1 | L111: 1 | M111: 2 | N111: 0 | O111: 1 | P111: 0 | Q111: 1 | R111: 0 | S111: 1 | T111: 0 | U111: 0 | V111: 0
A112: Kapazitäsrückgang während des Jahres | B112: =B110*$B$6 -> 60000 | C112: =C110*$B$6 -> 65000 | D112: =D110*$B$6 -> 70000 | E112: =E110*$B$6 -> 75000 | F112: 80000 | G112: 85000 | H112: 35000 | I112: 30000 | J112: 30000 | K112: 25000 | L112: 25000 | M112: =M110*$B$6 -> 20000 | N112: 15000 | O112: 15000 | P112: 10000 | Q112: 10000 | R112: 5000 | S112: 5000 | T112: 5000 | U112: 5000 | V112: 5000
A113: Kapitalfreisetzung am Jahresende | B113: =$F108*B110 -> 20000 | C113: =$F108*C110 -> 21666.66667 | D113: =$F108*D110 -> 23333.33333 | E113: =$F108*E110 -> 25000 | F113: 26666.66667 | G113: 28333.33333 | H113: 11666.66667 | I113: 10000 | J113: 10000 | K113: 8333.333333 | L113: 8333.333333 | M113: =$F108*M110 -> 6666.666667 | N113: 5000 | O113: 5000 | P113: 3333.333333 | Q113: 3333.333333 | R113: 1666.666667 | S113: 1666.666667 | T113: 1666.666667 | U113: 1666.666667 | V113: 1666.666667
A114: Freisetzung aus stiller Selbstfinanzierung am Jahresende | B114: =($B$5-$F108)*B110 -> -10000 | C114: =($B$5-$F108)*C110 -> -10833.33333 | D114: =($B$5-$F108)*D110 -> -11666.66667 | E114: =($B$5-$F108)*E110 -> -12500 | F114: -13333.33333 | G114: -14166.66667 | H114: -5833.333333 | I114: -5000 | J114: -5000 | K114: -4166.666667 | L114: -4166.666667 | M114: =($B$5-$F108)*M110 -> -3333.333333 | N114: -2500 | O114: -2500 | P114: -1666.666667 | Q114: -1666.666667 | R114: -833.3333333 | S114: -833.3333333 | T114: -833.3333333 | U114: -833.3333333 | V114: -833.3333333
A115: freigesetzte Mittel aus Vorjahr | B115: 0 | C115: =B116-B118 -> 0 | D115: =C116-C118 -> 833.3333333 | E115: =D116-D118 -> 2500 | F115: 5000 | G115: 8333.333333 | H115: 2500 | I115: 8333.333333 | J115: 3333.333333 | K115: 8333.333333 | L115: 2500 | M115: =L116-L118 -> 6666.666667 | N115: 0 | O115: 2500 | P115: 5000 | Q115: 6666.666667 | R115: 8333.333333 | S115: 9166.666667 | T115: 0 | U115: 833.3333333 | V115: 1666.666667
A116: Gesamtfreisetzung | B116: =B113+B114+B115 -> 10000 | C116: 10833.33333 | D116: 12500 | E116: 15000 | F116: 18333.33333 | G116: 22500 | H116: 8333.333333 | I116: 13333.33333 | J116: 8333.333333 | K116: 12500 | L116: 6666.666667 | M116: 10000 | N116: 2500 | O116: 5000 | P116: 6666.666667 | Q116: 8333.333333 | R116: 9166.666667 | S116: 10000 | T116: 833.3333333 | U116: 1666.666667 | V116: 2500
A117: Anzahl neuer Maschinen | B117: =INT(B116/$B$2) -> 1 | C117: 1 | D117: 1 | E117: 1 | F117: 1 | G117: 2 | H117: 0 | I117: 1 | J117: 0 | K117: 1 | L117: 0 | M117: 1 | N117: 0 | O117: 0 | P117: 0 | Q117: 0 | R117: 0 | S117: 1 | T117: 0 | U117: 0 | V117: 0
A118: Investition | B118: =B117*$B$2 -> 10000 | C118: 10000 | D118: 10000 | E118: 10000 | F118: 10000 | G118: 20000 | H118: 0 | I118: 10000 | J118: 0 | K118: 10000 | L118: 0 | M118: 10000 | N118: 0 | O118: 0 | P118: 0 | Q118: 0 | R118: 0 | S118: 10000 | T118: 0 | U118: 0 | V118: 0
A119: Gesamtkapazität Jahresanfang | B119: =B110*$B$6*$B108 -> 360000 | C119: =B122 -> 330000 | D119: =C122 -> 295000 | E119: =D122 -> 255000 | F119: 210000 | G119: 160000 | H119: 135000 | I119: 100000 | J119: 100000 | K119: 70000 | L119: 75000 | M119: =L122 -> 50000 | N119: 60000 | O119: 45000 | P119: 30000 | Q119: 20000 | R119: 10000 | S119: 5000 | T119: 30000 | U119: 25000 | V119: 20000
A120: Kapazitäsrückgang während des Jahres | B120: =B110*$B$6 -> 60000 | C120: =C110*$B$6 -> 65000 | D120: =D110*$B$6 -> 70000 | E120: =E110*$B$6 -> 75000 | F120: 80000 | G120: 85000 | H120: 35000 | I120: 30000 | J120: 30000 | K120: 25000 | L120: 25000 | M120: =M110*$B$6 -> 20000 | N120: 15000 | O120: 15000 | P120: 10000 | Q120: 10000 | R120: 5000 | S120: 5000 | T120: 5000 | U120: 5000 | V120: 5000
A121: Gesamtkapazitätszunahme | B121: =B117*$B$6*$B108 -> 30000 | C121: =C117*$B$6*$B108 -> 30000 | D121: =D117*$B$6*$B108 -> 30000 | E121: =E117*$B$6*$B108 -> 30000 | F121: 30000 | G121: 60000 | H121: 0 | I121: 30000 | J121: 0 | K121: 30000 | L121: 0 | M121: =M117*$B$6*$B108 -> 30000 | N121: 0 | O121: 0 | P121: 0 | Q121: 0 | R121: 0 | S121: 30000 | T121: 0 | U121: 0 | V121: 0
A122: Gesamtkapazität Jahresende | B122: =B119-B120+B121 -> 330000 | C122: 295000 | D122: 255000 | E122: 210000 | F122: 160000 | G122: 135000 | H122: 100000 | I122: 100000 | J122: 70000 | K122: 75000 | L122: 50000 | M122: 60000 | N122: 45000 | O122: 30000 | P122: 20000 | Q122: 10000 | R122: 5000 | S122: 30000 | T122: 25000 | U122: 20000 | V122: 15000
A123: Periodenkapazität am Jahresanfang | B123: =B110*$B$6 -> 60000 | C123: 65000 | D123: 70000 | E123: =E110*$B$6 -> 75000 | F123: 80000 | G123: 85000 | H123: 35000 | I123: 30000 | J123: 30000 | K123: 25000 | L123: 25000 | M123: =M110*$B$6 -> 20000 | N123: 15000 | O123: 15000 | P123: 10000 | Q123: 10000 | R123: 5000 | S123: 5000 | T123: 5000 | U123: 5000 | V123: 5000
A124: Periodenkapazitätsabnahme | B124: 0 | C124: 0 | D124: 0 | E124: =E111*$B$6 -> 0 | F124: 0 | G124: 60000 | H124: 5000 | I124: 5000 | J124: 5000 | K124: 5000 | L124: 5000 | M124: =M111*$B$6 -> 10000 | N124: 0 | O124: 5000 | P124: 0 | Q124: 5000 | R124: 0 | S124: 5000 | T124: 0 | U124: 0 | V124: 0
A125: Periodenkapazitätszunahme | B125: =B117*$B$6 -> 5000 | C125: =C117*$B$6 -> 5000 | D125: =D117*$B$6 -> 5000 | E125: =E117*$B$6 -> 5000 | F125: 5000 | G125: 10000 | H125: 0 | I125: 5000 | J125: 0 | K125: 5000 | L125: 0 | M125: =M117*$B$6 -> 5000 | N125: 0 | O125: 0 | P125: 0 | Q125: 0 | R125: 0 | S125: 5000 | T125: 0 | U125: 0 | V125: 0
A126: Periodenkapazität am Jahresende | B126: =B123-B124+B125 -> 65000 | C126: =C123+C125 -> 70000 | D126: 75000 | E126: 80000 | F126: 85000 | G126: 95000 | H126: 35000 | I126: 35000 | J126: 30000 | K126: 30000 | L126: 25000 | M126: 25000 | N126: 15000 | O126: 15000 | P126: 10000 | Q126: 10000 | R126: 5000 | S126: 10000 | T126: 5000 | U126: 5000 | V126: 5000
A128: kalkulatorische Nutzungsdauer in Jahren | B128: 7 | C128: kalkulatorische Abschreibung je Machine | F128: =$B$2/$B128 -> 1428.571429
A129: Periode | B129: 0 | C129: 1 | D129: 2 | E129: 3 | F129: 4 | G129: 5 | H129: 6 | I129: 7 | J129: 8 | K129: 9 | L129: 10 | M129: 11 | N129: 12 | O129: 13 | P129: 14 | Q129: 15 | R129: 16 | S129: 17 | T129: 18 | U129: 19 | V129: 20
A130: Maschinenbestand | B130: =$B$4 -> 12 | C130: =B130-B131+B137 -> 13 | D130: =C130-C131+C137 -> 14 | E130: =D130-D131+D137 -> 15 | F130: 16 | G130: 17 | H130: 7 | I130: 6 | J130: 6 | K130: 5 | L130: 5 | M130: =L130-L131+L137 -> 4 | N130: 3 | O130: 3 | P130: 2 | Q130: 2 | R130: 1 | S130: 1 | T130: 1 | U130: 1 | V130: 1
A131: Betriebsmittelabgang | B131: 0 | C131: 0 | D131: 0 | E131: 0 | F131: 0 | G131: =B130 -> 12 | H131: =B137 -> 1 | I131: 1 | J131: 1 | K131: 1 | L131: 1 | M131: 2 | N131: 0 | O131: 1 | P131: 0 | Q131: 1 | R131: 0 | S131: 1 | T131: 0 | U131: 0 | V131: 0
A132: Kapazitäsrückgang während des Jahres | B132: =B130*$B$6 -> 60000 | C132: =C130*$B$6 -> 65000 | D132: =D130*$B$6 -> 70000 | E132: =E130*$B$6 -> 75000 | F132: 80000 | G132: 85000 | H132: 35000 | I132: 30000 | J132: 30000 | K132: 25000 | L132: 25000 | M132: =M130*$B$6 -> 20000 | N132: 15000 | O132: 15000 | P132: 10000 | Q132: 10000 | R132: 5000 | S132: 5000 | T132: 5000 | U132: 5000 | V132: 5000
A133: Kapitalfreisetzung am Jahresende | B133: =$F128*B130 -> 17142.85714 | C133: =$F128*C130 -> 18571.42857 | D133: =$F128*D130 -> 20000 | E133: =$F128*E130 -> 21428.57143 | F133: 22857.14286 | G133: 24285.71429 | H133: 10000 | I133: 8571.428571 | J133: 8571.428571 | K133: 7142.857143 | L133: 7142.857143 | M133: =$F128*M130 -> 5714.285714 | N133: 4285.714286 | O133: 4285.714286 | P133: 2857.142857 | Q133: 2857.142857 | R133: 1428.571429 | S133: 1428.571429 | T133: 1428.571429 | U133: 1428.571429 | V133: 1428.571429
A134: Freisetzung aus stiller Selbstfinanzierung am Jahresende | B134: =($B$5-$F128)*B130 -> -7142.857143 | C134: =($B$5-$F128)*C130 -> -7738.095238 | D134: =($B$5-$F128)*D130 -> -8333.333333 | E134: =($B$5-$F128)*E130 -> -8928.571429 | F134: -9523.809524 | G134: -10119.04762 | H134: -4166.666667 | I134: -3571.428571 | J134: -3571.428571 | K134: -2976.190476 | L134: -2976.190476 | M134: =($B$5-$F128)*M130 -> -2380.952381 | N134: -1785.714286 | O134: -1785.714286 | P134: -1190.47619 | Q134: -1190.47619 | R134: -595.2380952 | S134: -595.2380952 | T134: -595.2380952 | U134: -595.2380952 | V134: -595.2380952
A135: freigesetzte Mittel aus Vorjahr | B135: 0 | C135: =B136-B138 -> 0 | D135: =C136-C138 -> 833.3333333 | E135: =D136-D138 -> 2500 | F135: 5000 | G135: 8333.333333 | H135: 2500 | I135: 8333.333333 | J135: 3333.333333 | K135: 8333.333333 | L135: 2500 | M135: =L136-L138 -> 6666.666667 | N135: 0 | O135: 2500 | P135: 5000 | Q135: 6666.666667 | R135: 8333.333333 | S135: 9166.666667 | T135: 0 | U135: 833.3333333 | V135: 1666.666667
A136: Gesamtfreisetzung | B136: =B133+B134+B135 -> 10000 | C136: 10833.33333 | D136: 12500 | E136: 15000 | F136: 18333.33333 | G136: 22500 | H136: 8333.333333 | I136: 13333.33333 | J136: 8333.333333 | K136: 12500 | L136: 6666.666667 | M136: 10000 | N136: 2500 | O136: 5000 | P136: 6666.666667 | Q136: 8333.333333 | R136: 9166.666667 | S136: 10000 | T136: 833.3333333 | U136: 1666.666667 | V136: 2500
A137: Anzahl neuer Maschinen | B137: =INT(B136/$B$2) -> 1 | C137: 1 | D137: 1 | E137: 1 | F137: 1 | G137: 2 | H137: 0 | I137: 1 | J137: 0 | K137: 1 | L137: 0 | M137: 1 | N137: 0 | O137: 0 | P137: 0 | Q137: 0 | R137: 0 | S137: 1 | T137: 0 | U137: 0 | V137: 0
A138: Investition | B138: =B137*$B$2 -> 10000 | C138: 10000 | D138: 10000 | E138: 10000 | F138: 10000 | G138: 20000 | H138: 0 | I138: 10000 | J138: 0 | K138: 10000 | L138: 0 | M138: 10000 | N138: 0 | O138: 0 | P138: 0 | Q138: 0 | R138: 0 | S138: 10000 | T138: 0 | U138: 0 | V138: 0
A139: Gesamtkapazität Jahresanfang | B139: =B130*$B$6*$B128 -> 420000 | C139: =B142 -> 395000 | D139: =C142 -> 365000 | E139: =D142 -> 330000 | F139: 290000 | G139: 245000 | H139: 230000 | I139: 195000 | J139: 200000 | K139: 170000 | L139: 180000 | M139: =L142 -> 155000 | N139: 170000 | O139: 155000 | P139: 140000 | Q139: 130000 | R139: 120000 | S139: 115000 | T139: 145000 | U139: 140000 | V139: 135000
A140: Kapazitäsrückgang während des Jahres | B140: =B130*$B$6 -> 60000 | C140: =C130*$B$6 -> 65000 | D140: =D130*$B$6 -> 70000 | E140: =E130*$B$6 -> 75000 | F140: 80000 | G140: 85000 | H140: 35000 | I140: 30000 | J140: 30000 | K140: 25000 | L140: 25000 | M140: =M130*$B$6 -> 20000 | N140: 15000 | O140: 15000 | P140: 10000 | Q140: 10000 | R140: 5000 | S140: 5000 | T140: 5000 | U140: 5000 | V140: 5000
A141: Gesamtkapazitätszunahme | B141: =B137*$B$6*$B128 -> 35000 | C141: =C137*$B$6*$B128 -> 35000 | D141: =D137*$B$6*$B128 -> 35000 | E141: =E137*$B$6*$B128 -> 35000 | F141: 35000 | G141: 70000 | H141: 0 | I141: 35000 | J141: 0 | K141: 35000 | L141: 0 | M141: =M137*$B$6*$B128 -> 35000 | N141: 0 | O141: 0 | P141: 0 | Q141: 0 | R141: 0 | S141: 35000 | T141: 0 | U141: 0 | V141: 0
A142: Gesamtkapazität Jahresende | B142: =B139-B140+B141 -> 395000 | C142: 365000 | D142: 330000 | E142: 290000 | F142: 245000 | G142: 230000 | H142: 195000 | I142: 200000 | J142: 170000 | K142: 180000 | L142: 155000 | M142: 170000 | N142: 155000 | O142: 140000 | P142: 130000 | Q142: 120000 | R142: 115000 | S142: 145000 | T142: 140000 | U142: 135000 | V142: 130000
A143: Periodenkapazität am Jahresanfang | B143: =B130*$B$6 -> 60000 | C143: 65000 | D143: 70000 | E143: =E130*$B$6 -> 75000 | F143: 80000 | G143: 85000 | H143: 35000 | I143: 30000 | J143: 30000 | K143: 25000 | L143: 25000 | M143: =M130*$B$6 -> 20000 | N143: 15000 | O143: 15000 | P143: 10000 | Q143: 10000 | R143: 5000 | S143: 5000 | T143: 5000 | U143: 5000 | V143: 5000
A144: Periodenkapazitätsabnahme | B144: 0 | C144: 0 | D144: 0 | E144: =E131*$B$6 -> 0 | F144: 0 | G144: 60000 | H144: 5000 | I144: 5000 | J144: 5000 | K144: 5000 | L144: 5000 | M144: =M131*$B$6 -> 10000 | N144: 0 | O144: 5000 | P144: 0 | Q144: 5000 | R144: 0 | S144: 5000 | T144: 0 | U144: 0 | V144: 0
A145: Periodenkapazitätszunahme | B145: =B137*$B$6 -> 5000 | C145: =C137*$B$6 -> 5000 | D145: =D137*$B$6 -> 5000 | E145: =E137*$B$6 -> 5000 | F145: 5000 | G145: 10000 | H145: 0 | I145: 5000 | J145: 0 | K145: 5000 | L145: 0 | M145: =M137*$B$6 -> 5000 | N145: 0 | O145: 0 | P145: 0 | Q145: 0 | R145: 0 | S145: 5000 | T145: 0 | U145: 0 | V145: 0
A146: Periodenkapazität am Jahresende | B146: =B143-B144+B145 -> 65000 | C146: =C143+C145 -> 70000 | D146: 75000 | E146: 80000 | F146: 85000 | G146: 95000 | H146: 35000 | I146: 35000 | J146: 30000 | K146: 30000 | L146: 25000 | M146: 25000 | N146: 15000 | O146: 15000 | P146: 10000 | Q146: 10000 | R146: 5000 | S146: 10000 | T146: 5000 | U146: 5000 | V146: 5000
A148: kalkulatorische Nutzungsdauer in Jahren | B148: 8 | C148: kalkulatorische Abschreibung je Machine | F148: =$B$2/$B148 -> 1250
A149: Periode | B149: 0 | C149: 1 | D149: 2 | E149: 3 | F149: 4 | G149: 5 | H149: 6 | I149: 7 | J149: 8 | K149: 9 | L149: 10 | M149: 11 | N149: 12 | O149: 13 | P149: 14 | Q149: 15 | R149: 16 | S149: 17 | T149: 18 | U149: 19 | V149: 20
A150: Maschinenbestand | B150: =$B$4 -> 12 | C150: =B150-B151+B157 -> 13 | D150: =C150-C151+C157 -> 14 | E150: =D150-D151+D157 -> 15 | F150: 16 | G150: 17 | H150: 7 | I150: 6 | J150: 6 | K150: 5 | L150: 5 | M150: =L150-L151+L157 -> 4 | N150: 3 | O150: 3 | P150: 2 | Q150: 2 | R150: 1 | S150: 1 | T150: 1 | U150: 1 | V150: 1
A151: Betriebsmittelabgang | B151: 0 | C151: 0 | D151: 0 | E151: 0 | F151: 0 | G151: =B150 -> 12 | H151: =B157 -> 1 | I151: 1 | J151: 1 | K151: 1 | L151: 1 | M151: 2 | N151: 0 | O151: 1 | P151: 0 | Q151: 1 | R151: 0 | S151: 1 | T151: 0 | U151: 0 | V151: 0
A152: Kapazitäsrückgang während des Jahres | B152: =B150*$B$6 -> 60000 | C152: =C150*$B$6 -> 65000 | D152: =D150*$B$6 -> 70000 | E152: =E150*$B$6 -> 75000 | F152: 80000 | G152: 85000 | H152: 35000 | I152: 30000 | J152: 30000 | K152: 25000 | L152: 25000 | M152: =M150*$B$6 -> 20000 | N152: 15000 | O152: 15000 | P152: 10000 | Q152: 10000 | R152: 5000 | S152: 5000 | T152: 5000 | U152: 5000 | V152: 5000
A153: Kapitalfreisetzung am Jahresende | B153: =$F148*B150 -> 15000 | C153: =$F148*C150 -> 16250 | D153: =$F148*D150 -> 17500 | E153: =$F148*E150 -> 18750 | F153: 20000 | G153: 21250 | H153: 8750 | I153: 7500 | J153: 7500 | K153: 6250 | L153: 6250 | M153: =$F148*M150 -> 5000 | N153: 3750 | O153: 3750 | P153: 2500 | Q153: 2500 | R153: 1250 | S153: 1250 | T153: 1250 | U153: 1250 | V153: 1250
A154: Freisetzung aus stiller Selbstfinanzierung am Jahresende | B154: =($B$5-$F148)*B150 -> -5000 | C154: =($B$5-$F148)*C150 -> -5416.666667 | D154: =($B$5-$F148)*D150 -> -5833.333333 | E154: =($B$5-$F148)*E150 -> -6250 | F154: -6666.666667 | G154: -7083.333333 | H154: -2916.666667 | I154: -2500 | J154: -2500 | K154: -2083.333333 | L154: -2083.333333 | M154: =($B$5-$F148)*M150 -> -1666.666667 | N154: -1250 | O154: -1250 | P154: -833.3333333 | Q154: -833.3333333 | R154: -416.6666667 | S154: -416.6666667 | T154: -416.6666667 | U154: -416.6666667 | V154: -416.6666667
A155: freigesetzte Mittel aus Vorjahr | B155: 0 | C155: =B156-B158 -> 0 | D155: =C156-C158 -> 833.3333333 | E155: =D156-D158 -> 2500 | F155: 5000 | G155: 8333.333333 | H155: 2500 | I155: 8333.333333 | J155: 3333.333333 | K155: 8333.333333 | L155: 2500 | M155: =L156-L158 -> 6666.666667 | N155: 0 | O155: 2500 | P155: 5000 | Q155: 6666.666667 | R155: 8333.333333 | S155: 9166.666667 | T155: 0 | U155: 833.3333333 | V155: 1666.666667
A156: Gesamtfreisetzung | B156: =B153+B154+B155 -> 10000 | C156: 10833.33333 | D156: 12500 | E156: 15000 | F156: 18333.33333 | G156: 22500 | H156: 8333.333333 | I156: 13333.33333 | J156: 8333.333333 | K156: 12500 | L156: 6666.666667 | M156: 10000 | N156: 2500 | O156: 5000 | P156: 6666.666667 | Q156: 8333.333333 | R156: 9166.666667 | S156: 10000 | T156: 833.3333333 | U156: 1666.666667 | V156: 2500
A157: Anzahl neuer Maschinen | B157: =INT(B156/$B$2) -> 1 | C157: 1 | D157: 1 | E157: 1 | F157: 1 | G157: 2 | H157: 0 | I157: 1 | J157: 0 | K157: 1 | L157: 0 | M157: 1 | N157: 0 | O157: 0 | P157: 0 | Q157: 0 | R157: 0 | S157: 1 | T157: 0 | U157: 0 | V157: 0
A158: Investition | B158: =B157*$B$2 -> 10000 | C158: 10000 | D158: 10000 | E158: 10000 | F158: 10000 | G158: 20000 | H158: 0 | I158: 10000 | J158: 0 | K158: 10000 | L158: 0 | M158: 10000 | N158: 0 | O158: 0 | P158: 0 | Q158: 0 | R158: 0 | S158: 10000 | T158: 0 | U158: 0 | V158: 0
A159: Gesamtkapazität Jahresanfang | B159: =B150*$B$6*$B148 -> 480000 | C159: =B162 -> 460000 | D159: =C162 -> 435000 | E159: =D162 -> 405000 | F159: 370000 | G159: 330000 | H159: 325000 | I159: 290000 | J159: 300000 | K159: 270000 | L159: 285000 | M159: =L162 -> 260000 | N159: 280000 | O159: 265000 | P159: 250000 | Q159: 240000 | R159: 230000 | S159: 225000 | T159: 260000 | U159: 255000 | V159: 250000
A160: Kapazitäsrückgang während des Jahres | B160: =B150*$B$6 -> 60000 | C160: =C150*$B$6 -> 65000 | D160: =D150*$B$6 -> 70000 | E160: =E150*$B$6 -> 75000 | F160: 80000 | G160: 85000 | H160: 35000 | I160: 30000 | J160: 30000 | K160: 25000 | L160: 25000 | M160: =M150*$B$6 -> 20000 | N160: 15000 | O160: 15000 | P160: 10000 | Q160: 10000 | R160: 5000 | S160: 5000 | T160: 5000 | U160: 5000 | V160: 5000
A161: Gesamtkapazitätszunahme | B161: =B157*$B$6*$B148 -> 40000 | C161: =C157*$B$6*$B148 -> 40000 | D161: =D157*$B$6*$B148 -> 40000 | E161: =E157*$B$6*$B148 -> 40000 | F161: 40000 | G161: 80000 | H161: 0 | I161: 40000 | J161: 0 | K161: 40000 | L161: 0 | M161: =M157*$B$6*$B148 -> 40000 | N161: 0 | O161: 0 | P161: 0 | Q161: 0 | R161: 0 | S161: 40000 | T161: 0 | U161: 0 | V161: 0
A162: Gesamtkapazität Jahresende | B162: =B159-B160+B161 -> 460000 | C162: 435000 | D162: 405000 | E162: 370000 | F162: 330000 | G162: 325000 | H162: 290000 | I162: 300000 | J162: 270000 | K162: 285000 | L162: 260000 | M162: 280000 | N162: 265000 | O162: 250000 | P162: 240000 | Q162: 230000 | R162: 225000 | S162: 260000 | T162: 255000 | U162: 250000 | V162: 245000
A163: Periodenkapazität am Jahresanfang | B163: =B150*$B$6 -> 60000 | C163: 65000 | D163: 70000 | E163: =E150*$B$6 -> 75000 | F163: 80000 | G163: 85000 | H163: 35000 | I163: 30000 | J163: 30000 | K163: 25000 | L163: 25000 | M163: =M150*$B$6 -> 20000 | N163: 15000 | O163: 15000 | P163: 10000 | Q163: 10000 | R163: 5000 | S163: 5000 | T163: 5000 | U163: 5000 | V163: 5000
A164: Periodenkapazitätsabnahme | B164: 0 | C164: 0 | D164: 0 | E164: =E151*$B$6 -> 0 | F164: 0 | G164: 60000 | H164: 5000 | I164: 5000 | J164: 5000 | K164: 5000 | L164: 5000 | M164: =M151*$B$6 -> 10000 | N164: 0 | O164: 5000 | P164: 0 | Q164: 5000 | R164: 0 | S164: 5000 | T164: 0 | U164: 0 | V164: 0
A165: Periodenkapazitätszunahme | B165: =B157*$B$6 -> 5000 | C165: =C157*$B$6 -> 5000 | D165: =D157*$B$6 -> 5000 | E165: =E157*$B$6 -> 5000 | F165: 5000 | G165: 10000 | H165: 0 | I165: 5000 | J165: 0 | K165: 5000 | L165: 0 | M165: =M157*$B$6 -> 5000 | N165: 0 | O165: 0 | P165: 0 | Q165: 0 | R165: 0 | S165: 5000 | T165: 0 | U165: 0 | V165: 0
A166: Periodenkapazität am Jahresende | B166: =B163-B164+B165 -> 65000 | C166: =C163+C165 -> 70000 | D166: 75000 | E166: 80000 | F166: 85000 | G166: 95000 | H166: 35000 | I166: 35000 | J166: 30000 | K166: 30000 | L166: 25000 | M166: 25000 | N166: 15000 | O166: 15000 | P166: 10000 | Q166: 10000 | R166: 5000 | S166: 10000 | T166: 5000 | U166: 5000 | V166: 5000
A168: kalkulatorische Nutzungsdauer in Jahren | B168: 9 | C168: kalkulatorische Abschreibung je Machine | F168: =$B$2/$B168 -> 1111.111111
A169: Periode | B169: 0 | C169: 1 | D169: 2 | E169: 3 | F169: 4 | G169: 5 | H169: 6 | I169: 7 | J169: 8 | K169: 9 | L169: 10 | M169: 11 | N169: 12 | O169: 13 | P169: 14 | Q169: 15 | R169: 16 | S169: 17 | T169: 18 | U169: 19 | V169: 20
A170: Maschinenbestand | B170: =$B$4 -> 12 | C170: =B170-B171+B177 -> 13 | D170: =C170-C171+C177 -> 14 | E170: =D170-D171+D177 -> 15 | F170: 16 | G170: 17 | H170: 7 | I170: 6 | J170: 6 | K170: 5 | L170: 5 | M170: =L170-L171+L177 -> 4 | N170: 3 | O170: 3 | P170: 2 | Q170: 2 | R170: 1 | S170: 1 | T170: 1 | U170: 1 | V170: 1
A171: Betriebsmittelabgang | B171: 0 | C171: 0 | D171: 0 | E171: 0 | F171: 0 | G171: =B170 -> 12 | H171: =B177 -> 1 | I171: 1 | J171: 1 | K171: 1 | L171: 1 | M171: 2 | N171: 0 | O171: 1 | P171: 0 | Q171: 1 | R171: 0 | S171: 1 | T171: 0 | U171: 0 | V171: 0
A172: Kapazitäsrückgang während des Jahres | B172: =B170*$B$6 -> 60000 | C172: =C170*$B$6 -> 65000 | D172: =D170*$B$6 -> 70000 | E172: =E170*$B$6 -> 75000 | F172: 80000 | G172: 85000 | H172: 35000 | I172: 30000 | J172: 30000 | K172: 25000 | L172: 25000 | M172: =M170*$B$6 -> 20000 | N172: 15000 | O172: 15000 | P172: 10000 | Q172: 10000 | R172: 5000 | S172: 5000 | T172: 5000 | U172: 5000 | V172: 5000
A173: Kapitalfreisetzung am Jahresende | B173: =$F168*B170 -> 13333.33333 | C173: =$F168*C170 -> 14444.44444 | D173: =$F168*D170 -> 15555.55556 | E173: =$F168*E170 -> 16666.66667 | F173: 17777.77778 | G173: 18888.88889 | H173: 7777.777778 | I173: 6666.666667 | J173: 6666.666667 | K173: 5555.555556 | L173: 5555.555556 | M173: =$F168*M170 -> 4444.444444 | N173: 3333.333333 | O173: 3333.333333 | P173: 2222.222222 | Q173: 2222.222222 | R173: 1111.111111 | S173: 1111.111111 | T173: 1111.111111 | U173: 1111.111111 | V173: 1111.111111
A174: Freisetzung aus stiller Selbstfinanzierung am Jahresende | B174: =($B$5-$F168)*B170 -> -3333.333333 | C174: =($B$5-$F168)*C170 -> -3611.111111 | D174: =($B$5-$F168)*D170 -> -3888.888889 | E174: =($B$5-$F168)*E170 -> -4166.666667 | F174: -4444.444444 | G174: -4722.222222 | H174: -1944.444444 | I174: -1666.666667 | J174: -1666.666667 | K174: -1388.888889 | L174: -1388.888889 | M174: =($B$5-$F168)*M170 -> -1111.111111 | N174: -833.3333333 | O174: -833.3333333 | P174: -555.5555556 | Q174: -555.5555556 | R174: -277.7777778 | S174: -277.7777778 | T174: -277.7777778 | U174: -277.7777778 | V174: -277.7777778
A175: freigesetzte Mittel aus Vorjahr | B175: 0 | C175: =B176-B178 -> 0 | D175: =C176-C178 -> 833.3333333 | E175: =D176-D178 -> 2500 | F175: 5000 | G175: 8333.333333 | H175: 2500 | I175: 8333.333333 | J175: 3333.333333 | K175: 8333.333333 | L175: 2500 | M175: =L176-L178 -> 6666.666667 | N175: 0 | O175: 2500 | P175: 5000 | Q175: 6666.666667 | R175: 8333.333333 | S175: 9166.666667 | T175: 0 | U175: 833.3333333 | V175: 1666.666667
A176: Gesamtfreisetzung | B176: =B173+B174+B175 -> 10000 | C176: 10833.33333 | D176: 12500 | E176: 15000 | F176: 18333.33333 | G176: 22500 | H176: 8333.333333 | I176: 13333.33333 | J176: 8333.333333 | K176: 12500 | L176: 6666.666667 | M176: 10000 | N176: 2500 | O176: 5000 | P176: 6666.666667 | Q176: 8333.333333 | R176: 9166.666667 | S176: 10000 | T176: 833.3333333 | U176: 1666.666667 | V176: 2500
A177: Anzahl neuer Maschinen | B177: =INT(B176/$B$2) -> 1 | C177: 1 | D177: 1 | E177: 1 | F177: 1 | G177: 2 | H177: 0 | I177: 1 | J177: 0 | K177: 1 | L177: 0 | M177: 1 | N177: 0 | O177: 0 | P177: 0 | Q177: 0 | R177: 0 | S177: 1 | T177: 0 | U177: 0 | V177: 0
A178: Investition | B178: =B177*$B$2 -> 10000 | C178: 10000 | D178: 10000 | E178: 10000 | F178: 10000 | G178: 20000 | H178: 0 | I178: 10000 | J178: 0 | K178: 10000 | L178: 0 | M178: 10000 | N178: 0 | O178: 0 | P178: 0 | Q178: 0 | R178: 0 | S178: 10000 | T178: 0 | U178: 0 | V178: 0
A179: Gesamtkapazität Jahresanfang | B179: =B170*$B$6*$B168 -> 540000 | C179: =B182 -> 525000 | D179: =C182 -> 505000 | E179: =D182 -> 480000 | F179: 450000 | G179: 415000 | H179: 420000 | I179: 385000 | J179: 400000 | K179: 370000 | L179: 390000 | M179: =L182 -> 365000 | N179: 390000 | O179: 375000 | P179: 360000 | Q179: 350000 | R179: 340000 | S179: 335000 | T179: 375000 | U179: 370000 | V179: 365000
A180: Kapazitäsrückgang während des Jahres | B180: =B170*$B$6 -> 60000 | C180: =C170*$B$6 -> 65000 | D180: =D170*$B$6 -> 70000 | E180: =E170*$B$6 -> 75000 | F180: 80000 | G180: 85000 | H180: 35000 | I180: 30000 | J180: 30000 | K180: 25000 | L180: 25000 | M180: =M170*$B$6 -> 20000 | N180: 15000 | O180: 15000 | P180: 10000 | Q180: 10000 | R180: 5000 | S180: 5000 | T180: 5000 | U180: 5000 | V180: 5000
A181: Gesamtkapazitätszunahme | B181: =B177*$B$6*$B168 -> 45000 | C181: =C177*$B$6*$B168 -> 45000 | D181: =D177*$B$6*$B168 -> 45000 | E181: =E177*$B$6*$B168 -> 45000 | F181: 45000 | G181: 90000 | H181: 0 | I181: 45000 | J181: 0 | K181: 45000 | L181: 0 | M181: =M177*$B$6*$B168 -> 45000 | N181: 0 | O181: 0 | P181: 0 | Q181: 0 | R181: 0 | S181: 45000 | T181: 0 | U181: 0 | V181: 0
A182: Gesamtkapazität Jahresende | B182: =B179-B180+B181 -> 525000 | C182: 505000 | D182: 480000 | E182: 450000 | F182: 415000 | G182: 420000 | H182: 385000 | I182: 400000 | J182: 370000 | K182: 390000 | L182: 365000 | M182: 390000 | N182: 375000 | O182: 360000 | P182: 350000 | Q182: 340000 | R182: 335000 | S182: 375000 | T182: 370000 | U182: 365000 | V182: 360000
A183: Periodenkapazität am Jahresanfang | B183: =B170*$B$6 -> 60000 | C183: 65000 | D183: 70000 | E183: =E170*$B$6 -> 75000 | F183: 80000 | G183: 85000 | H183: 35000 | I183: 30000 | J183: 30000 | K183: 25000 | L183: 25000 | M183: =M170*$B$6 -> 20000 | N183: 15000 | O183: 15000 | P183: 10000 | Q183: 10000 | R183: 5000 | S183: 5000 | T183: 5000 | U183: 5000 | V183: 5000
A184: Periodenkapazitätsabnahme | B184: 0 | C184: 0 | D184: 0 | E184: =E171*$B$6 -> 0 | F184: 0 | G184: 60000 | H184: 5000 | I184: 5000 | J184: 5000 | K184: 5000 | L184: 5000 | M184: =M171*$B$6 -> 10000 | N184: 0 | O184: 5000 | P184: 0 | Q184: 5000 | R184: 0 | S184: 5000 | T184: 0 | U184: 0 | V184: 0
A185: Periodenkapazitätszunahme | B185: =B177*$B$6 -> 5000 | C185: =C177*$B$6 -> 5000 | D185: =D177*$B$6 -> 5000 | E185: =E177*$B$6 -> 5000 | F185: 5000 | G185: 10000 | H185: 0 | I185: 5000 | J185: 0 | K185: 5000 | L185: 0 | M185: =M177*$B$6 -> 5000 | N185: 0 | O185: 0 | P185: 0 | Q185: 0 | R185: 0 | S185: 5000 | T185: 0 | U185: 0 | V185: 0
A186: Periodenkapazität am Jahresende | B186: =B183-B184+B185 -> 65000 | C186: =C183+C185 -> 70000 | D186: 75000 | E186: 80000 | F186: 85000 | G186: 95000 | H186: 35000 | I186: 35000 | J186: 30000 | K186: 30000 | L186: 25000 | M186: 25000 | N186: 15000 | O186: 15000 | P186: 10000 | Q186: 10000 | R186: 5000 | S186: 10000 | T186: 5000 | U186: 5000 | V186: 5000
A188: kalkulatorische Nutzungsdauer in Jahren | B188: 10 | C188: kalkulatorische Abschreibung je Machine | F188: =$B$2/$B188 -> 1000
A189: Periode | B189: 0 | C189: 1 | D189: 2 | E189: 3 | F189: 4 | G189: 5 | H189: 6 | I189: 7 | J189: 8 | K189: 9 | L189: 10 | M189: 11 | N189: 12 | O189: 13 | P189: 14 | Q189: 15 | R189: 16 | S189: 17 | T189: 18 | U189: 19 | V189: 20
A190: Maschinenbestand | B190: =$B$4 -> 12 | C190: =B190-B191+B197 -> 13 | D190: =C190-C191+C197 -> 14 | E190: =D190-D191+D197 -> 15 | F190: 16 | G190: 17 | H190: 7 | I190: 6 | J190: 6 | K190: 5 | L190: 5 | M190: =L190-L191+L197 -> 4 | N190: 3 | O190: 3 | P190: 2 | Q190: 2 | R190: 1 | S190: 1 | T190: 1 | U190: 1 | V190: 1
A191: Betriebsmittelabgang | B191: 0 | C191: 0 | D191: 0 | E191: 0 | F191: 0 | G191: =B190 -> 12 | H191: =B197 -> 1 | I191: 1 | J191: 1 | K191: 1 | L191: 1 | M191: 2 | N191: 0 | O191: 1 | P191: 0 | Q191: 1 | R191: 0 | S191: 1 | T191: 0 | U191: 0 | V191: 0
A192: Kapazitäsrückgang während des Jahres | B192: =B190*$B$6 -> 60000 | C192: =C190*$B$6 -> 65000 | D192: =D190*$B$6 -> 70000 | E192: =E190*$B$6 -> 75000 | F192: 80000 | G192: 85000 | H192: 35000 | I192: 30000 | J192: 30000 | K192: 25000 | L192: 25000 | M192: =M190*$B$6 -> 20000 | N192: 15000 | O192: 15000 | P192: 10000 | Q192: 10000 | R192: 5000 | S192: 5000 | T192: 5000 | U192: 5000 | V192: 5000
A193: Kapitalfreisetzung am Jahresende | B193: =$F188*B190 -> 12000 | C193: =$F188*C190 -> 13000 | D193: =$F188*D190 -> 14000 | E193: =$F188*E190 -> 15000 | F193: 16000 | G193: 17000 | H193: 7000 | I193: 6000 | J193: 6000 | K193: 5000 | L193: 5000 | M193: =$F188*M190 -> 4000 | N193: 3000 | O193: 3000 | P193: 2000 | Q193: 2000 | R193: 1000 | S193: 1000 | T193: 1000 | U193: 1000 | V193: 1000
A194: Freisetzung aus stiller Selbstfinanzierung am Jahresende | B194: =($B$5-$F188)*B190 -> -2000 | C194: =($B$5-$F188)*C190 -> -2166.666667 | D194: =($B$5-$F188)*D190 -> -2333.333333 | E194: =($B$5-$F188)*E190 -> -2500 | F194: -2666.666667 | G194: -2833.333333 | H194: -1166.666667 | I194: -1000 | J194: -1000 | K194: -833.3333333 | L194: -833.3333333 | M194: =($B$5-$F188)*M190 -> -666.6666667 | N194: -500 | O194: -500 | P194: -333.3333333 | Q194: -333.3333333 | R194: -166.6666667 | S194: -166.6666667 | T194: -166.6666667 | U194: -166.6666667 | V194: -166.6666667
A195: freigesetzte Mittel aus Vorjahr | B195: 0 | C195: =B196-B198 -> 0 | D195: =C196-C198 -> 833.3333333 | E195: =D196-D198 -> 2500 | F195: 5000 | G195: 8333.333333 | H195: 2500 | I195: 8333.333333 | J195: 3333.333333 | K195: 8333.333333 | L195: 2500 | M195: =L196-L198 -> 6666.666667 | N195: 0 | O195: 2500 | P195: 5000 | Q195: 6666.666667 | R195: 8333.333333 | S195: 9166.666667 | T195: 0 | U195: 833.3333333 | V195: 1666.666667
A196: Gesamtfreisetzung | B196: =B193+B194+B195 -> 10000 | C196: 10833.33333 | D196: 12500 | E196: 15000 | F196: 18333.33333 | G196: 22500 | H196: 8333.333333 | I196: 13333.33333 | J196: 8333.333333 | K196: 12500 | L196: 6666.666667 | M196: 10000 | N196: 2500 | O196: 5000 | P196: 6666.666667 | Q196: 8333.333333 | R196: 9166.666667 | S196: 10000 | T196: 833.3333333 | U196: 1666.666667 | V196: 2500
A197: Anzahl neuer Maschinen | B197: =INT(B196/$B$2) -> 1 | C197: 1 | D197: 1 | E197: 1 | F197: 1 | G197: 2 | H197: 0 | I197: 1 | J197: 0 | K197: 1 | L197: 0 | M197: 1 | N197: 0 | O197: 0 | P197: 0 | Q197: 0 | R197: 0 | S197: 1 | T197: 0 | U197: 0 | V197: 0
A198: Investition | B198: =B197*$B$2 -> 10000 | C198: 10000 | D198: 10000 | E198: 10000 | F198: 10000 | G198: 20000 | H198: 0 | I198: 10000 | J198: 0 | K198: 10000 | L198: 0 | M198: 10000 | N198: 0 | O198: 0 | P198: 0 | Q198: 0 | R198: 0 | S198: 10000 | T198: 0 | U198: 0 | V198: 0
A199: Gesamtkapazität Jahresanfang | B199: =B190*$B$6*$B188 -> 600000 | C199: =B202 -> 590000 | D199: =C202 -> 575000 | E199: =D202 -> 555000 | F199: 530000 | G199: 500000 | H199: 515000 | I199: 480000 | J199: 500000 | K199: 470000 | L199: 495000 | M199: =L202 -> 470000 | N199: 500000 | O199: 485000 | P199: 470000 | Q199: 460000 | R199: 450000 | S199: 445000 | T199: 490000 | U199: 485000 | V199: 480000
A200: Kapazitäsrückgang während des Jahres | B200: =B190*$B$6 -> 60000 | C200: =C190*$B$6 -> 65000 | D200: =D190*$B$6 -> 70000 | E200: =E190*$B$6 -> 75000 | F200: 80000 | G200: 85000 | H200: 35000 | I200: 30000 | J200: 30000 | K200: 25000 | L200: 25000 | M200: =M190*$B$6 -> 20000 | N200: 15000 | O200: 15000 | P200: 10000 | Q200: 10000 | R200: 5000 | S200: 5000 | T200: 5000 | U200: 5000 | V200: 5000
A201: Gesamtkapazitätszunahme | B201: =B197*$B$6*$B188 -> 50000 | C201: =C197*$B$6*$B188 -> 50000 | D201: =D197*$B$6*$B188 -> 50000 | E201: =E197*$B$6*$B188 -> 50000 | F201: 50000 | G201: 100000 | H201: 0 | I201: 50000 | J201: 0 | K201: 50000 | L201: 0 | M201: =M197*$B$6*$B188 -> 50000 | N201: 0 | O201: 0 | P201: 0 | Q201: 0 | R201: 0 | S201: 50000 | T201: 0 | U201: 0 | V201: 0
A202: Gesamtkapazität Jahresende | B202: =B199-B200+B201 -> 590000 | C202: 575000 | D202: 555000 | E202: 530000 | F202: 500000 | G202: 515000 | H202: 480000 | I202: 500000 | J202: 470000 | K202: 495000 | L202: 470000 | M202: 500000 | N202: 485000 | O202: 470000 | P202: 460000 | Q202: 450000 | R202: 445000 | S202: 490000 | T202: 485000 | U202: 480000 | V202: 475000
A203: Periodenkapazität am Jahresanfang | B203: =B190*$B$6 -> 60000 | C203: 65000 | D203: 70000 | E203: =E190*$B$6 -> 75000 | F203: 80000 | G203: 85000 | H203: 35000 | I203: 30000 | J203: 30000 | K203: 25000 | L203: 25000 | M203: =M190*$B$6 -> 20000 | N203: 15000 | O203: 15000 | P203: 10000 | Q203: 10000 | R203: 5000 | S203: 5000 | T203: 5000 | U203: 5000 | V203: 5000
A204: Periodenkapazitätsabnahme | B204: 0 | C204: 0 | D204: 0 | E204: =E191*$B$6 -> 0 | F204: 0 | G204: 60000 | H204: 5000 | I204: 5000 | J204: 5000 | K204: 5000 | L204: 5000 | M204: =M191*$B$6 -> 10000 | N204: 0 | O204: 5000 | P204: 0 | Q204: 5000 | R204: 0 | S204: 5000 | T204: 0 | U204: 0 | V204: 0
A205: Periodenkapazitätszunahme | B205: =B197*$B$6 -> 5000 | C205: =C197*$B$6 -> 5000 | D205: =D197*$B$6 -> 5000 | E205: =E197*$B$6 -> 5000 | F205: 5000 | G205: 10000 | H205: 0 | I205: 5000 | J205: 0 | K205: 5000 | L205: 0 | M205: =M197*$B$6 -> 5000 | N205: 0 | O205: 0 | P205: 0 | Q205: 0 | R205: 0 | S205: 5000 | T205: 0 | U205: 0 | V205: 0
A206: Periodenkapazität am Jahresende | B206: =B203-B204+B205 -> 65000 | C206: =C203+C205 -> 70000 | D206: 75000 | E206: 80000 | F206: 85000 | G206: 95000 | H206: 35000 | I206: 35000 | J206: 30000 | K206: 30000 | L206: 25000 | M206: 25000 | N206: 15000 | O206: 15000 | P206: 10000 | Q206: 10000 | R206: 5000 | S206: 10000 | T206: 5000 | U206: 5000 | V206: 5000
A208: kalkulatorische Nutzungsdauer in Jahren | B208: 11 | C208: kalkulatorische Abschreibung je Machine | F208: =$B$2/$B208 -> 909.0909091
A209: Periode | B209: 0 | C209: 1 | D209: 2 | E209: 3 | F209: 4 | G209: 5 | H209: 6 | I209: 7 | J209: 8 | K209: 9 | L209: 10 | M209: 11 | N209: 12 | O209: 13 | P209: 14 | Q209: 15 | R209: 16 | S209: 17 | T209: 18 | U209: 19 | V209: 20
A210: Maschinenbestand | B210: =$B$4 -> 12 | C210: =B210-B211+B217 -> 13 | D210: =C210-C211+C217 -> 14 | E210: =D210-D211+D217 -> 15 | F210: 16 | G210: 17 | H210: 7 | I210: 6 | J210: 6 | K210: 5 | L210: 5 | M210: =L210-L211+L217 -> 4 | N210: 3 | O210: 3 | P210: 2 | Q210: 2 | R210: 1 | S210: 1 | T210: 1 | U210: 1 | V210: 1
A211: Betriebsmittelabgang | B211: 0 | C211: 0 | D211: 0 | E211: 0 | F211: 0 | G211: =B210 -> 12 | H211: =B217 -> 1 | I211: 1 | J211: 1 | K211: 1 | L211: 1 | M211: 2 | N211: 0 | O211: 1 | P211: 0 | Q211: 1 | R211: 0 | S211: 1 | T211: 0 | U211: 0 | V211: 0
A212: Kapazitäsrückgang während des Jahres | B212: =B210*$B$6 -> 60000 | C212: =C210*$B$6 -> 65000 | D212: =D210*$B$6 -> 70000 | E212: =E210*$B$6 -> 75000 | F212: 80000 | G212: 85000 | H212: 35000 | I212: 30000 | J212: 30000 | K212: 25000 | L212: 25000 | M212: =M210*$B$6 -> 20000 | N212: 15000 | O212: 15000 | P212: 10000 | Q212: 10000 | R212: 5000 | S212: 5000 | T212: 5000 | U212: 5000 | V212: 5000
... 185 more rows

Sheet Diagramme
B3: kalkulatorische Nutzungsdauer : | E3: 1
B23: kalkulatorische Nutzungsdauer : | E23: 2
B43: kalkulatorische Nutzungsdauer : | E43: 3
B63: kalkulatorische Nutzungsdauer : | E63: 4
B83: kalkulatorische Nutzungsdauer : | E83: 5
B103: kalkulatorische Nutzungsdauer : | E103: 6
B123: kalkulatorische Nutzungsdauer : | E123: 7
B143: kalkulatorische Nutzungsdauer : | E143: 8
B163: kalkulatorische Nutzungsdauer : | E163: 9
B183: kalkulatorische Nutzungsdauer : | E183: 10
B203: kalkulatorische Nutzungsdauer : | E203: 11
B223: kalkulatorische Nutzungsdauer : | E223: 12
B243: kalkulatorische Nutzungsdauer : | E243: 13
B263: kalkulatorische Nutzungsdauer : | E263: 14
B283: kalkulatorische Nutzungsdauer : | E283: 15
B303: kalkulatorische Nutzungsdauer : | E303: 16
B323: kalkulatorische Nutzungsdauer : | E323: 17
B343: kalkulatorische Nutzungsdauer : | E343: 18
B363: kalkulatorische Nutzungsdauer : | E363: 19
B383: kalkulatorische Nutzungsdauer : | E383: 20
